Workbook

Sheet Отчет
G1: Государственное автономное образовательное учреждение высшего образования города Москвы «Московский городской педагогический университет»
F5: Сводка приема заявлений с пофамильным перечнем
K7: 20 сентября 2017 года
A9: Институт / факультет / колледж:
B11: Дирекция образовательных программ
A14: Направление подготовки / специальность:
B16: 37.04.01 Психология (Психолингвистика речевого воздействия)
A18: Пофамильный список подавших заявления:
B20: Очная, 1 курс, Бюджетные места, На базе ВПО, Магистратура
B21: План | C21: 16
B22: Подано | C22: 30
B23: Конкурс | C23: =IF(C21=0,0,C22/C21) -> 1.875
B25: 1 | C25: 0001ДИР_ПСИХМ_ПСИХЛИНГ_Д_2_17 | D25: Сасковец Елена Георгиевна | E25: По результатам вступительных испытаний, проводимых организацией самостоятельно
B26: 2 | C26: 0002ДИР_ПСИХМ_ПСИХЛИНГ_Д_2_17 | D26: Гавычева Александра Александровна | E26: По результатам вступительных испытаний, проводимых организацией самостоятельно
B27: 3 | C27: 0003ДИР_ПСИХМ_ПСИХЛИНГ_Д_2_17 | D27: Ровенская Наталья Анатольевна | E27: По результатам вступительных испытаний, проводимых организацией самостоятельно
B28: 4 | C28: 0004ДИР_ПСИХМ_ПСИХЛИНГ_Д_2_17 | D28: Степанова Дина Зямильевна | E28: По результатам вступительных испытаний, проводимых организацией самостоятельно
B29: 5 | C29: 0005ДИР_ПСИХМ_ПСИХЛИНГ_Д_2_17 | D29: Зенченко Мария Олеговна | E29: По результатам вступительных испытаний, проводимых организацией самостоятельно
B30: 6 | C30: 0006ДИР_ПСИХМ_ПСИХЛИНГ_Д_2_17 | D30: Лычагина Диана Владимировна | E30: По результатам вступительных испытаний, проводимых организацией самостоятельно
B31: 7 | C31: 0007ДИР_ПСИХМ_ПСИХЛИНГ_Д_2_17 | D31: Захарова Мария Валентиновна | E31: По результатам вступительных испытаний, проводимых организацией самостоятельно
B32: 8 | C32: 0008ДИР_ПСИХМ_ПСИХЛИНГ_Д_2_17 | D32: Лобкова Ольга Вячеславовна | E32: По результатам вступительных испытаний, проводимых организацией самостоятельно
B33: 9 | C33: 0009ДИР_ПСИХМ_ПСИХЛИНГ_Д_2_17 | D33: Павлушкин Никита Алексеевич | E33: По результатам вступительных испытаний, проводимых организацией самостоятельно
B34: 10 | C34: 0010ДИР_ПСИХМ_ПСИХЛИНГ_Д_2_17 | D34: Осипов Владислав Владиславович | E34: По результатам вступительных испытаний, проводимых организацией самостоятельно
B35: 11 | C35: 0011ДИР_ПСИХМ_ПСИХЛИНГ_Д_2_17 | D35: Магурова Анастасия Николаевна | E35: По результатам вступительных испытаний, проводимых организацией самостоятельно
B36: 12 | C36: 0012ДИР_ПСИХМ_ПСИХЛИНГ_Д_2_17 | D36: Новикова Елена Владимировна | E36: По результатам вступительных испытаний, проводимых организацией самостоятельно
B37: 13 | C37: 0013ДИР_ПСИХМ_ПСИХЛИНГ_Д_2_17 | D37: Штыркова Алёна Алексеевна | E37: По результатам вступительных испытаний, проводимых организацией самостоятельно
B38: 14 | C38: 0014ДИР_ПСИХМ_ПСИХЛИНГ_Д_2_17 | D38: Краснов Иван Николаевич | E38: По результатам вступительных испытаний, проводимых организацией самостоятельно
B39: 15 | C39: 0015ДИР_ПСИХМ_ПСИХЛИНГ_Д_2_17 | D39: Михайлова Оксана Юрьевна | E39: По результатам вступительных испытаний, проводимых организацией самостоятельно
B40: 16 | C40: 0016ДИР_ПСИХМ_ПСИХЛИНГ_Д_2_17 | D40: Андреева Светлана Алексеевна | E40: По результатам вступительных испытаний, проводимых организацией самостоятельно
B41: 17 | C41: 0017ДИР_ПСИХМ_ПСИХЛИНГ_Д_2_17 | D41: Шенцева Светлана Николаевна | E41: По результатам вступительных испытаний, проводимых организацией самостоятельно
B42: 18 | C42: 0018ДИР_ПСИХМ_ПСИХЛИНГ_Д_2_17 | D42: Сопелко Алена Валерьевна | E42: По результатам вступительных испытаний, проводимых организацией самостоятельно
B43: 19 | C43: 0019ДИР_ПСИХМ_ПСИХЛИНГ_Д_2_17 | D43: Джафар-Заде Джамиля Авсаф кызы | E43: По результатам вступительных испытаний, проводимых организацией самостоятельно
B44: 20 | C44: 0020ДИР_ПСИХМ_ПСИХЛИНГ_Д_2_17 | D44: Чагдурова Дарья Болотовна | E44: По результатам вступительных испытаний, проводимых организацией самостоятельно
B45: 21 | C45: 0021ДИР_ПСИХМ_ПСИХЛИНГ_Д_2_17 | D45: Стаценко Василина Алексеевна | E45: По результатам вступительных испытаний, проводимых организацией самостоятельно
B46: 22 | C46: 0022ДИР_ПСИХМ_ПСИХЛИНГ_Д_2_17 | D46: Попова Дарья Алексеевна | E46: По результатам вступительных испытаний, проводимых организацией самостоятельно
B47: 23 | C47: 0023ДИР_ПСИХМ_ПСИХЛИНГ_Д_2_17 | D47: Аксентьева Юлия Владимировна | E47: По результатам вступительных испытаний, проводимых организацией самостоятельно
B48: 24 | C48: 0024ДИР_ПСИХМ_ПСИХЛИНГ_Д_2_17 | D48: Плющ Валерия Игоревна | E48: По результатам вступительных испытаний, проводимых организацией самостоятельно
B49: 25 | C49: 0025ДИР_ПСИХМ_ПСИХЛИНГ_Д_2_17 | D49: Шпетная Наталья Сергеевна | E49: По результатам вступительных испытаний, проводимых организацией самостоятельно
B50: 26 | C50: 0026ДИР_ПСИХМ_ПСИХЛИНГ_Д_2_17 | D50: Валиневич Арина Евгеньевна | E50: По результатам вступительных испытаний, проводимых организацией самостоятельно
B51: 27 | C51: 0027ДИР_ПСИХМ_ПСИХЛИНГ_Д_2_17 | D51: Фунтиков Юрий Александрович | E51: По результатам вступительных испытаний, проводимых организацией самостоятельно
B52: 28 | C52: 0028ДИР_ПСИХМ_ПСИХЛИНГ_Д_2_17 | D52: Локоткова Марина Анатольевна | E52: По результатам вступительных испытаний, проводимых организацией самостоятельно
B53: 29 | C53: 0029ДИР_ПСИХМ_ПСИХЛИНГ_Д_2_17 | D53: Шеин Александр Павлович | E53: По результатам вступительных испытаний, проводимых организацией самостоятельно
B54: 30 | C54: 0030ДИР_ПСИХМ_ПСИХЛИНГ_Д_2_17 | D54: Ягья Тимур Наилевич | E54: По результатам вступительных испытаний, проводимых организацией самостоятельно
A57: Направление подготовки / специальность:
B59: 37.04.01 Психология (Психолингвистика речевого воздействия)
A61: Пофамильный список подавших заявления:
B63: Очная, 1 курс, С оплатой обучения, На базе ВПО, Магистратура
B64: План | C64: 10
B65: Подано | C65: 30
B66: Конкурс | C66: =IF(C64=0,0,C65/C64) -> 3
B68: 1 | C68: 0001К_ДИР_ПСИХМ_ПСИХЛИНГ_Д_2_17 | D68: Сасковец Елена Георгиевна | E68: По результатам вступительных испытаний, проводимых организацией самостоятельно
B69: 2 | C69: 0002К_ДИР_ПСИХМ_ПСИХЛИНГ_Д_2_17 | D69: Гавычева Александра Александровна | E69: По результатам вступительных испытаний, проводимых организацией самостоятельно
B70: 3 | C70: 0003К_ДИР_ПСИХМ_ПСИХЛИНГ_Д_2_17 | D70: Ровенская Наталья Анатольевна | E70: По результатам вступительных испытаний, проводимых организацией самостоятельно
B71: 4 | C71: 0004К_ДИР_ПСИХМ_ПСИХЛИНГ_Д_2_17 | D71: Степанова Дина Зямильевна | E71: По результатам вступительных испытаний, проводимых организацией самостоятельно
B72: 5 | C72: 0005К_ДИР_ПСИХМ_ПСИХЛИНГ_Д_2_17 | D72: Зенченко Мария Олеговна | E72: По результатам вступительных испытаний, проводимых организацией самостоятельно
B73: 6 | C73: 0006К_ДИР_ПСИХМ_ПСИХЛИНГ_Д_2_17 | D73: Лычагина Диана Владимировна | E73: По результатам вступительных испытаний, проводимых организацией самостоятельно
B74: 7 | C74: 0007К_ДИР_ПСИХМ_ПСИХЛИНГ_Д_2_17 | D74: Захарова Мария Валентиновна | E74: По результатам вступительных испытаний, проводимых организацией самостоятельно
B75: 8 | C75: 0008К_ДИР_ПСИХМ_ПСИХЛИНГ_Д_2_17 | D75: Лобкова Ольга Вячеславовна | E75: По результатам вступительных испытаний, проводимых организацией самостоятельно
B76: 9 | C76: 0009К_ДИР_ПСИХМ_ПСИХЛИНГ_Д_2_17 | D76: Павлушкин Никита Алексеевич | E76: По результатам вступительных испытаний, проводимых организацией самостоятельно
B77: 10 | C77: 0010К_ДИР_ПСИХМ_ПСИХЛИНГ_Д_2_17 | D77: Осипов Владислав Владиславович | E77: По результатам вступительных испытаний, проводимых организацией самостоятельно
B78: 11 | C78: 0011К_ДИР_ПСИХМ_ПСИХЛИНГ_Д_2_17 | D78: Магурова Анастасия Николаевна | E78: По результатам вступительных испытаний, проводимых организацией самостоятельно
B79: 12 | C79: 0012К_ДИР_ПСИХМ_ПСИХЛИНГ_Д_2_17 | D79: Новикова Елена Владимировна | E79: По результатам вступительных испытаний, проводимых организацией самостоятельно
B80: 13 | C80: 0013К_ДИР_ПСИХМ_ПСИХЛИНГ_Д_2_17 | D80: Штыркова Алёна Алексеевна | E80: По результатам вступительных испытаний, проводимых организацией самостоятельно
B81: 14 | C81: 0014К_ДИР_ПСИХМ_ПСИХЛИНГ_Д_2_17 | D81: Краснов Иван Николаевич | E81: По результатам вступительных испытаний, проводимых организацией самостоятельно
B82: 15 | C82: 0015К_ДИР_ПСИХМ_ПСИХЛИНГ_Д_2_17 | D82: Михайлова Оксана Юрьевна | E82: По результатам вступительных испытаний, проводимых организацией самостоятельно
B83: 16 | C83: 0016К_ДИР_ПСИХМ_ПСИХЛИНГ_Д_2_17 | D83: Андреева Светлана Алексеевна | E83: По результатам вступительных испытаний, проводимых организацией самостоятельно
B84: 17 | C84: 0017К_ДИР_ПСИХМ_ПСИХЛИНГ_Д_2_17 | D84: Шенцева Светлана Николаевна | E84: По результатам вступительных испытаний, проводимых организацией самостоятельно
B85: 18 | C85: 0018К_ДИР_ПСИХМ_ПСИХЛИНГ_Д_2_17 | D85: Сопелко Алена Валерьевна | E85: По результатам вступительных испытаний, проводимых организацией самостоятельно
B86: 19 | C86: 0019К_ДИР_ПСИХМ_ПСИХЛИНГ_Д_2_17 | D86: Джафар-Заде Джамиля Авсаф кызы | E86: По результатам вступительных испытаний, проводимых организацией самостоятельно
B87: 20 | C87: 0020К_ДИР_ПСИХМ_ПСИХЛИНГ_Д_2_17 | D87: Чагдурова Дарья Болотовна | E87: По результатам вступительных испытаний, проводимых организацией самостоятельно
B88: 21 | C88: 0021К_ДИР_ПСИХМ_ПСИХЛИНГ_Д_2_17 | D88: Стаценко Василина Алексеевна | E88: По результатам вступительных испытаний, проводимых организацией самостоятельно
B89: 22 | C89: 0022К_ДИР_ПСИХМ_ПСИХЛИНГ_Д_2_17 | D89: Попова Дарья Алексеевна | E89: По результатам вступительных испытаний, проводимых организацией самостоятельно
B90: 23 | C90: 0023К_ДИР_ПСИХМ_ПСИХЛИНГ_Д_2_17 | D90: Аксентьева Юлия Владимировна | E90: По результатам вступительных испытаний, проводимых организацией самостоятельно
B91: 24 | C91: 0024К_ДИР_ПСИХМ_ПСИХЛИНГ_Д_2_17 | D91: Плющ Валерия Игоревна | E91: По результатам вступительных испытаний, проводимых организацией самостоятельно
B92: 25 | C92: 0025К_ДИР_ПСИХМ_ПСИХЛИНГ_Д_2_17 | D92: Шпетная Наталья Сергеевна | E92: По результатам вступительных испытаний, проводимых организацией самостоятельно
B93: 26 | C93: 0026К_ДИР_ПСИХМ_ПСИХЛИНГ_Д_2_17 | D93: Валиневич Арина Евгеньевна | E93: По результатам вступительных испытаний, проводимых организацией самостоятельно
B94: 27 | C94: 0027К_ДИР_ПСИХМ_ПСИХЛИНГ_Д_2_17 | D94: Фунтиков Юрий Александрович | E94: По результатам вступительных испытаний, проводимых организацией самостоятельно
B95: 28 | C95: 0028К_ДИР_ПСИХМ_ПСИХЛИНГ_Д_2_17 | D95: Локоткова Марина Анатольевна | E95: По результатам вступительных испытаний, проводимых организацией самостоятельно
B96: 29 | C96: 0029К_ДИР_ПСИХМ_ПСИХЛИНГ_Д_2_17 | D96: Шеин Александр Павлович | E96: По результатам вступительных испытаний, проводимых организацией самостоятельно
B97: 30 | C97: 0030К_ДИР_ПСИХМ_ПСИХЛИНГ_Д_2_17 | D97: Ягья Тимур Наилевич | E97: По результатам вступительных испытаний, проводимых организацией самостоятельно
A100: Направление подготовки / специальность:
B102: 42.04.01 Реклама и связи с общественностью (Образовательные медиа)
A104: Пофамильный список подавших заявления:
B106: Очная, 1 курс, Бюджетные места, На базе ВПО, Магистратура
B107: План | C107: 15
B108: Подано | C108: 51
B109: Конкурс | C109: =IF(C107=0,0,C108/C107) -> 3.4
B111: 1 | C111: 0001ДИР_РЕКМ_ОМ_Д_2_17 | D111: Оникова Татьяна Николаевна | E111: По результатам вступительных испытаний, проводимых организацией самостоятельно
B112: 2 | C112: 0002ДИР_РЕКМ_ОМ_Д_2_17 | D112: Кузнецова Мария Александровна | E112: По результатам вступительных испытаний, проводимых организацией самостоятельно
B113: 3 | C113: 0003ДИР_РЕКМ_ОМ_Д_2_17 | D113: Степанов Владимир Петрович | E113: По результатам вступительных испытаний, проводимых организацией самостоятельно
B114: 4 | C114: 0004ДИР_РЕКМ_ОМ_Д_2_17 | D114: Миначева Юлия Зямилевна | E114: По результатам вступительных испытаний, проводимых организацией самостоятельно
B115: 5 | C115: 0005ДИР_РЕКМ_ОМ_Д_2_17 | D115: Осипов Максим Александрович | E115: По результатам вступительных испытаний, проводимых организацией самостоятельно
B116: 6 | C116: 0006ДИР_РЕКМ_ОМ_Д_2_17 | D116: Зубкова Марина Александровна | E116: По результатам вступительных испытаний, проводимых организацией самостоятельно
B117: 7 | C117: 0007ДИР_РЕКМ_ОМ_Д_2_17 | D117: Ганжур Дмитрий Алексеевич | E117: По результатам вступительных испытаний, проводимых организацией самостоятельно
B118: 8 | C118: 0008ДИР_РЕКМ_ОМ_Д_2_17 | D118: Гурина Регина Равильевна | E118: По результатам вступительных испытаний, проводимых организацией самостоятельно
B119: 9 | C119: 0009ДИР_РЕКМ_ОМ_Д_2_17 | D119: Цветкова Екатерина Михайловна | E119: По результатам вступительных испытаний, проводимых организацией самостоятельно
B120: 10 | C120: 0010ДИР_РЕКМ_ОМ_Д_2_17 | D120: Елисеева Анна Валерьевна | E120: По результатам вступительных испытаний, проводимых организацией самостоятельно
B121: 11 | C121: 0011ДИР_РЕКМ_ОМ_Д_2_17 | D121: Штыркова Алёна Алексеевна | E121: По результатам вступительных испытаний, проводимых организацией самостоятельно
B122: 12 | C122: 0012ДИР_РЕКМ_ОМ_Д_2_17 | D122: Мамедова Марина Эльчиновна | E122: По результатам вступительных испытаний, проводимых организацией самостоятельно
B123: 13 | C123: 0013ДИР_РЕКМ_ОМ_Д_2_17 | D123: Абаимова Алиса Михайловна | E123: По результатам вступительных испытаний, проводимых организацией самостоятельно
B124: 14 | C124: 0014ДИР_РЕКМ_ОМ_Д_2_17 | D124: Толстов Андрей Владимирович | E124: По результатам вступительных испытаний, проводимых организацией самостоятельно
B125: 15 | C125: 0015ДИР_РЕКМ_ОМ_Д_2_17 | D125: Власов Олег Евгеньевич | E125: По результатам вступительных испытаний, проводимых организацией самостоятельно
B126: 16 | C126: 0016ДИР_РЕКМ_ОМ_Д_2_17 | D126: Гусева Наталья Олеговна | E126: По результатам вступительных испытаний, проводимых организацией самостоятельно
B127: 17 | C127: 0017ДИР_РЕКМ_ОМ_Д_2_17 | D127: Смелова Маргарита Владиславовна | E127: По результатам вступительных испытаний, проводимых организацией самостоятельно
B128: 18 | C128: 0018ДИР_РЕКМ_ОМ_Д_2_17 | D128: Аветисян Коля Аветикович | E128: По результатам вступительных испытаний, проводимых организацией самостоятельно
B129: 19 | C129: 0019ДИР_РЕКМ_ОМ_Д_2_17 | D129: Гирева Екатерина Андреевна | E129: По результатам вступительных испытаний, проводимых организацией самостоятельно
B130: 20 | C130: 0020ДИР_РЕКМ_ОМ_Д_2_17 | D130: Зимина Анастасия Алексеевна | E130: По результатам вступительных испытаний, проводимых организацией самостоятельно
B131: 21 | C131: 0021ДИР_РЕКМ_ОМ_Д_2_17 | D131: Бугаков Иван Александрович | E131: По результатам вступительных испытаний, проводимых организацией самостоятельно
B132: 22 | C132: 0022ДИР_РЕКМ_ОМ_Д_2_17 | D132: Чернышева Дарья Николаевна | E132: По результатам вступительных испытаний, проводимых организацией самостоятельно
B133: 23 | C133: 0023ДИР_РЕКМ_ОМ_Д_2_17 | D133: Шумеева Екатерина Игоревна | E133: По результатам вступительных испытаний, проводимых организацией самостоятельно
B134: 24 | C134: 0024ДИР_РЕКМ_ОМ_Д_2_17 | D134: Ланцов Роман Игоревич | E134: По результатам вступительных испытаний, проводимых организацией самостоятельно
B135: 25 | C135: 0025ДИР_РЕКМ_ОМ_Д_2_17 | D135: Терегулов Ринат Равилевич | E135: По результатам вступительных испытаний, проводимых организацией самостоятельно
B136: 26 | C136: 0026ДИР_РЕКМ_ОМ_Д_2_17 | D136: Большаков Александр Сергеевич | E136: По результатам вступительных испытаний, проводимых организацией самостоятельно
B137: 27 | C137: 0027ДИР_РЕКМ_ОМ_Д_2_17 | D137: Боряева Елена Владимировна | E137: По результатам вступительных испытаний, проводимых организацией самостоятельно
B138: 28 | C138: 0028ДИР_РЕКМ_ОМ_Д_2_17 | D138: Осокин Алексей Витальевич | E138: По результатам вступительных испытаний, проводимых организацией самостоятельно
B139: 29 | C139: 0029ДИР_РЕКМ_ОМ_Д_2_17 | D139: Чубарова Кристина Игоревна | E139: По результатам вступительных испытаний, проводимых организацией самостоятельно
B140: 30 | C140: 0030ДИР_РЕКМ_ОМ_Д_2_17 | D140: Ременников Михаил Юрьевич | E140: По результатам вступительных испытаний, проводимых организацией самостоятельно
B141: 31 | C141: 0031ДИР_РЕКМ_ОМ_Д_2_17 | D141: Комиссар Снежана Олеговна | E141: По результатам вступительных испытаний, проводимых организацией самостоятельно
B142: 32 | C142: 0032ДИР_РЕКМ_ОМ_Д_2_17 | D142: Борисова Татьяна Николаевна | E142: По результатам вступительных испытаний, проводимых организацией самостоятельно
B143: 33 | C143: 0033ДИР_РЕКМ_ОМ_Д_2_17 | D143: Кузнецова Кристина Алексеевна | E143: По результатам вступительных испытаний, проводимых организацией самостоятельно
B144: 34 | C144: 0034ДИР_РЕКМ_ОМ_Д_2_17 | D144: Хитёва Вера Петровна | E144: По результатам вступительных испытаний, проводимых организацией самостоятельно
B145: 35 | C145: 0035ДИР_РЕКМ_ОМ_Д_2_17 | D145: Колесниченко Александра Андреевна | E145: По результатам вступительных испытаний, проводимых организацией самостоятельно
B146: 36 | C146: 0036ДИР_РЕКМ_ОМ_Д_2_17 | D146: Кузнецова Юлия Игоревна | E146: По результатам вступительных испытаний, проводимых организацией самостоятельно
B147: 37 | C147: 0037ДИР_РЕКМ_ОМ_Д_2_17 | D147: Долгов Кирилл Олегович | E147: По результатам вступительных испытаний, проводимых организацией самостоятельно
B148: 38 | C148: 0038ДИР_РЕКМ_ОМ_Д_2_17 | D148: Стаценко Василина Алексеевна | E148: По результатам вступительных испытаний, проводимых организацией самостоятельно
B149: 39 | C149: 0039ДИР_РЕКМ_ОМ_Д_2_17 | D149: Орленко Ирина Ивановна | E149: По результатам вступительных испытаний, проводимых организацией самостоятельно
B150: 40 | C150: 0040ДИР_РЕКМ_ОМ_Д_2_17 | D150: Лизунов Александр Андреевич | E150: По результатам вступительных испытаний, проводимых организацией самостоятельно
B151: 41 | C151: 0041ДИР_РЕКМ_ОМ_Д_2_17 | D151: Фазлутдинов Роман Русланович | E151: По результатам вступительных испытаний, проводимых организацией самостоятельно
B152: 42 | C152: 0042ДИР_РЕКМ_ОМ_Д_2_17 | D152: Плющ Валерия Игоревна | E152: По результатам вступительных испытаний, проводимых организацией самостоятельно
B153: 43 | C153: 0043ДИР_РЕКМ_ОМ_Д_2_17 | D153: Нифонтов Дмитрий Алексеевич | E153: По результатам вступительных испытаний, проводимых организацией самостоятельно
B154: 44 | C154: 0044ДИР_РЕКМ_ОМ_Д_2_17 | D154: Лунева Юлия Сергеевна | E154: По результатам вступительных испытаний, проводимых организацией самостоятельно
B155: 45 | C155: 0045ДИР_РЕКМ_ОМ_Д_2_17 | D155: Королев Александр Игоревич | E155: По результатам вступительных испытаний, проводимых организацией самостоятельно
B156: 46 | C156: 0046ДИР_РЕКМ_ОМ_Д_2_17 | D156: Захаркина Анастасия Александровна | E156: По результатам вступительных испытаний, проводимых организацией самостоятельно
B157: 47 | C157: 0047ДИР_РЕКМ_ОМ_Д_2_17 | D157: Рассадина Софья Сергеевна | E157: По результатам вступительных испытаний, проводимых организацией самостоятельно
B158: 48 | C158: 0048ДИР_РЕКМ_ОМ_Д_2_17 | D158: Моисеев Дмитрий Александрович | E158: По результатам вступительных испытаний, проводимых организацией самостоятельно
B159: 49 | C159: 0049ДИР_РЕКМ_ОМ_Д_2_17 | D159: Филонова Анна Сергеевна | E159: По результатам вступительных испытаний, проводимых организацией самостоятельно
B160: 50 | C160: 0050ДИР_РЕКМ_ОМ_Д_2_17 | D160: Яшкина Ксения Сергеевна | E160: По результатам вступительных испытаний, проводимых организацией самостоятельно
B161: 51 | C161: 0051ДИР_РЕКМ_ОМ_Д_2_17 | D161: Комаров Никита Александрович | E161: По результатам вступительных испытаний, проводимых организацией самостоятельно
A164: Направление подготовки / специальность:
B166: 42.04.01 Реклама и связи с общественностью (Образовательные медиа)
A168: Пофамильный список подавших заявления:
B170: Очная, 1 курс, С оплатой обучения, На базе ВПО, Магистратура
B171: План | C171: 10
B172: Подано | C172: 51
B173: Конкурс | C173: =IF(C171=0,0,C172/C171) -> 5.1
B175: 1 | C175: 0001К_ДИР_РЕКМ_ОМ_Д_2_17 | D175: Оникова Татьяна Николаевна | E175: По результатам вступительных испытаний, проводимых организацией самостоятельно
B176: 2 | C176: 0002К_ДИР_РЕКМ_ОМ_Д_2_17 | D176: Кузнецова Мария Александровна | E176: По результатам вступительных испытаний, проводимых организацией самостоятельно
B177: 3 | C177: 0003К_ДИР_РЕКМ_ОМ_Д_2_17 | D177: Степанов Владимир Петрович | E177: По результатам вступительных испытаний, проводимых организацией самостоятельно
B178: 4 | C178: 0004К_ДИР_РЕКМ_ОМ_Д_2_17 | D178: Миначева Юлия Зямилевна | E178: По результатам вступительных испытаний, проводимых организацией самостоятельно
B179: 5 | C179: 0005К_ДИР_РЕКМ_ОМ_Д_2_17 | D179: Осипов Максим Александрович | E179: По результатам вступительных испытаний, проводимых организацией самостоятельно
B180: 6 | C180: 0006К_ДИР_РЕКМ_ОМ_Д_2_17 | D180: Зубкова Марина Александровна | E180: По результатам вступительных испытаний, проводимых организацией самостоятельно
B181: 7 | C181: 0007К_ДИР_РЕКМ_ОМ_Д_2_17 | D181: Ганжур Дмитрий Алексеевич | E181: По результатам вступительных испытаний, проводимых организацией самостоятельно
B182: 8 | C182: 0008К_ДИР_РЕКМ_ОМ_Д_2_17 | D182: Гурина Регина Равильевна | E182: По результатам вступительных испытаний, проводимых организацией самостоятельно
B183: 9 | C183: 0009К_ДИР_РЕКМ_ОМ_Д_2_17 | D183: Цветкова Екатерина Михайловна | E183: По результатам вступительных испытаний, проводимых организацией самостоятельно
B184: 10 | C184: 0010К_ДИР_РЕКМ_ОМ_Д_2_17 | D184: Елисеева Анна Валерьевна | E184: По результатам вступительных испытаний, проводимых организацией самостоятельно
B185: 11 | C185: 0011К_ДИР_РЕКМ_ОМ_Д_2_17 | D185: Штыркова Алёна Алексеевна | E185: По результатам вступительных испытаний, проводимых организацией самостоятельно
B186: 12 | C186: 0012К_ДИР_РЕКМ_ОМ_Д_2_17 | D186: Мамедова Марина Эльчиновна | E186: По результатам вступительных испытаний, проводимых организацией самостоятельно
B187: 13 | C187: 0013К_ДИР_РЕКМ_ОМ_Д_2_17 | D187: Абаимова Алиса Михайловна | E187: По результатам вступительных испытаний, проводимых организацией самостоятельно
B188: 14 | C188: 0014К_ДИР_РЕКМ_ОМ_Д_2_17 | D188: Толстов Андрей Владимирович | E188: По результатам вступительных испытаний, проводимых организацией самостоятельно
B189: 15 | C189: 0015К_ДИР_РЕКМ_ОМ_Д_2_17 | D189: Власов Олег Евгеньевич | E189: По результатам вступительных испытаний, проводимых организацией самостоятельно
B190: 16 | C190: 0016К_ДИР_РЕКМ_ОМ_Д_2_17 | D190: Гусева Наталья Олеговна | E190: По результатам вступительных испытаний, проводимых организацией самостоятельно
B191: 17 | C191: 0017К_ДИР_РЕКМ_ОМ_Д_2_17 | D191: Смелова Маргарита Владиславовна | E191: По результатам вступительных испытаний, проводимых организацией самостоятельно
B192: 18 | C192: 0018К_ДИР_РЕКМ_ОМ_Д_2_17 | D192: Аветисян Коля Аветикович | E192: По результатам вступительных испытаний, проводимых организацией самостоятельно
B193: 19 | C193: 0019К_ДИР_РЕКМ_ОМ_Д_2_17 | D193: Гирева Екатерина Андреевна | E193: По результатам вступительных испытаний, проводимых организацией самостоятельно
B194: 20 | C194: 0020К_ДИР_РЕКМ_ОМ_Д_2_17 | D194: Зимина Анастасия Алексеевна | E194: По результатам вступительных испытаний, проводимых организацией самостоятельно
B195: 21 | C195: 0021К_ДИР_РЕКМ_ОМ_Д_2_17 | D195: Бугаков Иван Александрович | E195: По результатам вступительных испытаний, проводимых организацией самостоятельно
B196: 22 | C196: 0022К_ДИР_РЕКМ_ОМ_Д_2_17 | D196: Чернышева Дарья Николаевна | E196: По результатам вступительных испытаний, проводимых организацией самостоятельно
B197: 23 | C197: 0023К_ДИР_РЕКМ_ОМ_Д_2_17 | D197: Шумеева Екатерина Игоревна | E197: По результатам вступительных испытаний, проводимых организацией самостоятельно
B198: 24 | C198: 0024К_ДИР_РЕКМ_ОМ_Д_2_17 | D198: Ланцов Роман Игоревич | E198: По результатам вступительных испытаний, проводимых организацией самостоятельно
B199: 25 | C199: 0025К_ДИР_РЕКМ_ОМ_Д_2_17 | D199: Терегулов Ринат Равилевич | E199: По результатам вступительных испытаний, проводимых организацией самостоятельно
B200: 26 | C200: 0026К_ДИР_РЕКМ_ОМ_Д_2_17 | D200: Большаков Александр Сергеевич | E200: По результатам вступительных испытаний, проводимых организацией самостоятельно
B201: 27 | C201: 0027К_ДИР_РЕКМ_ОМ_Д_2_17 | D201: Боряева Елена Владимировна | E201: По результатам вступительных испытаний, проводимых организацией самостоятельно
B202: 28 | C202: 0028К_ДИР_РЕКМ_ОМ_Д_2_17 | D202: Осокин Алексей Витальевич | E202: По результатам вступительных испытаний, проводимых организацией самостоятельно
B203: 29 | C203: 0029К_ДИР_РЕКМ_ОМ_Д_2_17 | D203: Чубарова Кристина Игоревна | E203: По результатам вступительных испытаний, проводимых организацией самостоятельно
B204: 30 | C204: 0030К_ДИР_РЕКМ_ОМ_Д_2_17 | D204: Ременников Михаил Юрьевич | E204: По результатам вступительных испытаний, проводимых организацией самостоятельно
B205: 31 | C205: 0031К_ДИР_РЕКМ_ОМ_Д_2_17 | D205: Комиссар Снежана Олеговна | E205: По результатам вступительных испытаний, проводимых организацией самостоятельно
B206: 32 | C206: 0032К_ДИР_РЕКМ_ОМ_Д_2_17 | D206: Борисова Татьяна Николаевна | E206: По результатам вступительных испытаний, проводимых организацией самостоятельно
B207: 33 | C207: 0033К_ДИР_РЕКМ_ОМ_Д_2_17 | D207: Кузнецова Кристина Алексеевна | E207: По результатам вступительных испытаний, проводимых организацией самостоятельно
B208: 34 | C208: 0034К_ДИР_РЕКМ_ОМ_Д_2_17 | D208: Хитёва Вера Петровна | E208: По результатам вступительных испытаний, проводимых организацией самостоятельно
B209: 35 | C209: 0035К_ДИР_РЕКМ_ОМ_Д_2_17 | D209: Колесниченко Александра Андреевна | E209: По результатам вступительных испытаний, проводимых организацией самостоятельно
B210: 36 | C210: 0036К_ДИР_РЕКМ_ОМ_Д_2_17 | D210: Кузнецова Юлия Игоревна | E210: По результатам вступительных испытаний, проводимых организацией самостоятельно
B211: 37 | C211: 0037К_ДИР_РЕКМ_ОМ_Д_2_17 | D211: Долгов Кирилл Олегович | E211: По результатам вступительных испытаний, проводимых организацией самостоятельно
B212: 38 | C212: 0038К_ДИР_РЕКМ_ОМ_Д_2_17 | D212: Стаценко Василина Алексеевна | E212: По результатам вступительных испытаний, проводимых организацией самостоятельно
B213: 39 | C213: 0039К_ДИР_РЕКМ_ОМ_Д_2_17 | D213: Орленко Ирина Ивановна | E213: По результатам вступительных испытаний, проводимых организацией самостоятельно
B214: 40 | C214: 0040К_ДИР_РЕКМ_ОМ_Д_2_17 | D214: Лизунов Александр Андреевич | E214: По результатам вступительных испытаний, проводимых организацией самостоятельно
B215: 41 | C215: 0041К_ДИР_РЕКМ_ОМ_Д_2_17 | D215: Фазлутдинов Роман Русланович | E215: По результатам вступительных испытаний, проводимых организацией самостоятельно
B216: 42 | C216: 0042К_ДИР_РЕКМ_ОМ_Д_2_17 | D216: Смирнова Мария Дмитриевна | E216: По результатам вступительных испытаний, проводимых организацией самостоятельно
B217: 43 | C217: 0043К_ДИР_РЕКМ_ОМ_Д_2_17 | D217: Плющ Валерия Игоревна | E217: По результатам вступительных испытаний, проводимых организацией самостоятельно
B218: 44 | C218: 0044К_ДИР_РЕКМ_ОМ_Д_2_17 | D218: Нифонтов Дмитрий Алексеевич | E218: По результатам вступительных испытаний, проводимых организацией самостоятельно
B219: 45 | C219: 0045К_ДИР_РЕКМ_ОМ_Д_2_17 | D219: Лунева Юлия Сергеевна | E219: По результатам вступительных испытаний, проводимых организацией самостоятельно
B220: 46 | C220: 0046К_ДИР_РЕКМ_ОМ_Д_2_17 | D220: Королев Александр Игоревич | E220: По результатам вступительных испытаний, проводимых организацией самостоятельно
B221: 47 | C221: 0047К_ДИР_РЕКМ_ОМ_Д_2_17 | D221: Захаркина Анастасия Александровна | E221: По результатам вступительных испытаний, проводимых организацией самостоятельно
B222: 48 | C222: 0048К_ДИР_РЕКМ_ОМ_Д_2_17 | D222: Рассадина Софья Сергеевна | E222: По результатам вступительных испытаний, проводимых организацией самостоятельно
B223: 49 | C223: 0049К_ДИР_РЕКМ_ОМ_Д_2_17 | D223: Моисеев Дмитрий Александрович | E223: По результатам вступительных испытаний, проводимых организацией самостоятельно
B224: 50 | C224: 0050К_ДИР_РЕКМ_ОМ_Д_2_17 | D224: Яшкина Ксения Сергеевна | E224: По результатам вступительных испытаний, проводимых организацией самостоятельно
B225: 51 | C225: 0051К_ДИР_РЕКМ_ОМ_Д_2_17 | D225: Комаров Никита Александрович | E225: По результатам вступительных испытаний, проводимых организацией самостоятельно
A228: Направление подготовки / специальность:
B230: 44.04.01 Педагогическое образование (ДОП)
A232: Пофамильный список подавших заявления:
B234: Очная, 1 курс, Бюджетные места, На базе ВПО, Магистратура
B235: План | C235: 30
... 4011 more rows

Sheet Filters (hidden)
A1: Id | B1: Title
A2: 14 | B2: Гуманитарно-правовой колледж
A3: 41 | B3: Дирекция образовательных программ
A4: 40 | B4: Институт гуманитарных наук и управления
A5: 9 | B5: Институт иностранных языков
A6: 24 | B6: Институт культуры и искусств
A7: 22 | B7: Институт математики, информатики и естественных наук
A8: 7 | B8: Институт педагогики и психологии образования
A9: 3 | B9: Институт психологии, социологии и социальных отношений
A10: 16 | B10: Институт специального образования и комплексной реабилитации
A11: 10 | B11: Педагогический институт физической культуры и спорта
A12: 33 | B12: Педагогический колледж «Арбат»
A13: 30 | B13: Педагогический колледж «Дорогомилово»
A14: 32 | B14: Педагогический колледж «Измайлово»
A15: 35 | B15: Педагогический колледж «Медведково»
A16: 28 | B16: Педагогический колледж «Черемушки»
A17: 34 | B17: Педагогический колледж имени С.Я. Маршака
A18: 37 | B18: Экономический колледж
A19: 23 | B19: Юридический институт

Sheet Departments (hidden)
A1: Department_Id | B1: Department_Title
A2: 41 | B2: Дирекция образовательных программ
A3: 40 | B3: Институт гуманитарных наук и управления
A4: 9 | B4: Институт иностранных языков
A5: 24 | B5: Институт культуры и искусств
A6: 22 | B6: Институт математики, информатики и естественных наук
A7: 7 | B7: Институт педагогики и психологии образования
A8: 3 | B8: Институт психологии, социологии и социальных отношений
A9: 16 | B9: Институт специального образования и комплексной реабилитации
A10: 10 | B10: Педагогический институт физической культуры и спорта
A11: 23 | B11: Юридический институт
A12: 14 | B12: Гуманитарно-правовой колледж
A13: 14, 37 | B13: Гуманитарно-правовой колледж, Экономический колледж
A14: 28, 30, 32, 33, 34, 35 | B14: Педагогический колледж «Арбат», Педагогический колледж «Дорогомилово», Педагогический колледж «Измайлово», Педагогический колледж «Медведково», Педагогический колледж «Черемушки», Педагогический колледж имени С.Я. Маршака
A15: 30, 32, 33, 34 | B15: Педагогический колледж «Арбат», Педагогический колледж «Дорогомилово», Педагогический колледж «Измайлово», Педагогический колледж имени С.Я. Маршака
A16: 28, 33, 35 | B16: Педагогический колледж «Арбат», Педагогический колледж «Медведково», Педагогический колледж «Черемушки»
A17: 28, 33, 34, 35 | B17: Педагогический колледж «Арбат», Педагогический колледж «Медведково», Педагогический колледж «Черемушки», Педагогический колледж имени С.Я. Маршака
A18: 33, 34 | B18: Педагогический колледж «Арбат», Педагогический колледж имени С.Я. Маршака
A19: 30 | B19: Педагогический колледж «Дорогомилово»
A20: 30, 32, 34 | B20: Педагогический колледж «Дорогомилово», Педагогический колледж «Измайлово», Педагогический колледж имени С.Я. Маршака
A21: 32 | B21: Педагогический колледж «Измайлово»
A22: 35 | B22: Педагогический колледж «Медведково»
A23: 28, 35 | B23: Педагогический колледж «Медведково», Педагогический колледж «Черемушки»
A24: 28 | B24: Педагогический колледж «Черемушки»
A25: 34 | B25: Педагогический колледж имени С.Я. Маршака
A26: 37 | B26: Экономический колледж

Sheet EnterPlans (hidden)
A1: Department_Id | B1: EnterPlan_Id | C1: EnterPlan_Title | D1: EnterPlan_Plan | E1: EnterPlan_Notes
A2: 10 | B2: 2526 | C2: 44.03.01 Педагогическое образование (Физическая культура) | D2: 2 | E2: Очная, 1 курс, Бюджетные места (Квота приема лиц, имеющих особое право), Академический бакалавриат
A3: 10 | B3: 2525 | C3: 44.03.01 Педагогическое образование (Физическая культура) | D3: 48 | E3: Очная, 1 курс, Бюджетные места, Академический бакалавриат
A4: 10 | B4: 2527 | C4: 44.03.01 Педагогическое образование (Физическая культура) | D4: 15 | E4: Очная, 1 курс, С оплатой обучения, Академический бакалавриат
A5: 10 | B5: 2521 | C5: 49.03.01 Физическая культура (Спортивная тренировка) | D5: 2 | E5: Очная, 1 курс, Бюджетные места (Квота приема лиц, имеющих особое право), Академический бакалавриат
A6: 10 | B6: 2520 | C6: 49.03.01 Физическая культура (Спортивная тренировка) | D6: 23 | E6: Очная, 1 курс, Бюджетные места, Академический бакалавриат
A7: 10 | B7: 2522 | C7: 49.03.01 Физическая культура (Спортивная тренировка) | D7: 15 | E7: Очная, 1 курс, С оплатой обучения, Академический бакалавриат
A8: 10 | B8: 2530 | C8: 49.03.02 Физическая культура для лиц с отклонениями в состоянии здоровья (адаптивная физическая культура) (Физическая реабилитация) | D8: 2 | E8: Очная, 1 курс, Бюджетные места (Квота приема лиц, имеющих особое право), Академический бакалавриат
A9: 10 | B9: 2529 | C9: 49.03.02 Физическая культура для лиц с отклонениями в состоянии здоровья (адаптивная физическая культура) (Физическая реабилитация) | D9: 23 | E9: Очная, 1 курс, Бюджетные места, Академический бакалавриат
A10: 10 | B10: 2531 | C10: 49.03.02 Физическая культура для лиц с отклонениями в состоянии здоровья (адаптивная физическая культура) (Физическая реабилитация) | D10: 15 | E10: Очная, 1 курс, С оплатой обучения, Академический бакалавриат
A11: 10 | B11: 2528 | C11: 44.03.01 Педагогическое образование (Физическая культура) | D11: 30 | E11: Заочная, 1 курс, С оплатой обучения, Академический бакалавриат
A12: 10 | B12: 2532 | C12: 49.03.02 Физическая культура для лиц с отклонениями в состоянии здоровья (адаптивная физическая культура) (Физическая реабилитация) | D12: 30 | E12: Заочная, 1 курс, С оплатой обучения, Академический бакалавриат
A13: 10 | B13: 2535 | C13: 44.04.01 Педагогическое образование (Базовая физическая подготовка: теория, методика, система практик) | D13: 15 | E13: Очная, 1 курс, Бюджетные места, На базе ВПО, Магистратура
A14: 10 | B14: 2536 | C14: 44.04.01 Педагогическое образование (Базовая физическая подготовка: теория, методика, система практик) | D14: 10 | E14: Очная, 1 курс, С оплатой обучения, На базе ВПО, Магистратура
A15: 10 | B15: 2541 | C15: 44.04.01 Педагогическое образование (Профессиональная деятельность тренера по общей и функциональной физической подготовке) | D15: 15 | E15: Очная, 1 курс, Бюджетные места, На базе ВПО, Магистратура
A16: 10 | B16: 2542 | C16: 44.04.01 Педагогическое образование (Профессиональная деятельность тренера по общей и функциональной физической подготовке) | D16: 10 | E16: Очная, 1 курс, С оплатой обучения, На базе ВПО, Магистратура
A17: 10 | B17: 2533 | C17: 44.04.01 Педагогическое образование (Теория физической культуры и технология физического воспитания) | D17: 15 | E17: Очная, 1 курс, Бюджетные места, На базе ВПО, Магистратура
A18: 10 | B18: 2534 | C18: 44.04.01 Педагогическое образование (Теория физической культуры и технология физического воспитания) | D18: 10 | E18: Очная, 1 курс, С оплатой обучения, На базе ВПО, Магистратура
A19: 10 | B19: 2523 | C19: 44.04.02 Психолого-педагогическое образование (Спортивная психология) | D19: 15 | E19: Очная, 1 курс, Бюджетные места, На базе ВПО, Магистратура
A20: 10 | B20: 2524 | C20: 44.04.02 Психолого-педагогическое образование (Спортивная психология) | D20: 10 | E20: Очная, 1 курс, С оплатой обучения, На базе ВПО, Магистратура
A21: 10 | B21: 2539 | C21: 49.04.01 Физическая культура (Адаптивная физическая культура) | D21: 15 | E21: Очная, 1 курс, Бюджетные места, На базе ВПО, Магистратура
A22: 10 | B22: 2540 | C22: 49.04.01 Физическая культура (Адаптивная физическая культура) | D22: 10 | E22: Очная, 1 курс, С оплатой обучения, На базе ВПО, Магистратура
A23: 10 | B23: 2537 | C23: 49.04.01 Физическая культура (Теория и методика юношеского спорта) | D23: 15 | E23: Очная, 1 курс, Бюджетные места, На базе ВПО, Магистратура
A24: 10 | B24: 2538 | C24: 49.04.01 Физическая культура (Теория и методика юношеского спорта) | D24: 10 | E24: Очная, 1 курс, С оплатой обучения, На базе ВПО, Магистратура
A25: 14 | B25: 2860 | C25: 40.02.01 Право и организация социального обеспечения (Юрист) | D25: 20 | E25: Очная, 1 курс, С оплатой обучения, Специальность среднего профессионального образования
A26: 14 | B26: 2861 | C26: 40.02.01 Право и организация социального обеспечения (Юрист) | D26: 20 | E26: Заочная, 1 курс, С оплатой обучения, Специальность среднего профессионального образования
A27: 14, 37 | B27: 2845 | C27: 40.02.01 Право и организация социального обеспечения (Юрист) | D27: 100 | E27: Очная, 1 курс, С оплатой обучения, На базе основного общего образования, Специальность среднего профессионального образования
A28: 16 | B28: 2544 | C28: 44.03.03 Специальное (дефектологическое) образование (Дошкольная дефектология) | D28: 2 | E28: Очная, 1 курс, Бюджетные места (Квота приема лиц, имеющих особое право), Академический бакалавриат
A29: 16 | B29: 2543 | C29: 44.03.03 Специальное (дефектологическое) образование (Дошкольная дефектология) | D29: 18 | E29: Очная, 1 курс, Бюджетные места, Академический бакалавриат
A30: 16 | B30: 2545 | C30: 44.03.03 Специальное (дефектологическое) образование (Дошкольная дефектология) | D30: 15 | E30: Очная, 1 курс, С оплатой обучения, Академический бакалавриат
A31: 16 | B31: 2549 | C31: 44.03.03 Специальное (дефектологическое) образование (Логопедия) | D31: 4 | E31: Очная, 1 курс, Бюджетные места (Квота приема лиц, имеющих особое право), Академический бакалавриат
A32: 16 | B32: 2548 | C32: 44.03.03 Специальное (дефектологическое) образование (Логопедия) | D32: 31 | E32: Очная, 1 курс, Бюджетные места, Академический бакалавриат
A33: 16 | B33: 2552 | C33: 44.03.03 Специальное (дефектологическое) образование (Логопедия) | D33: 15 | E33: Очная, 1 курс, С оплатой обучения, Академический бакалавриат
A34: 16 | B34: 2551 | C34: 44.03.03 Специальное (дефектологическое) образование (Логопедия) | D34: 2 | E34: Очно-заочная, 1 курс, Бюджетные места (Квота приема лиц, имеющих особое право), Академический бакалавриат
A35: 16 | B35: 2550 | C35: 44.03.03 Специальное (дефектологическое) образование (Логопедия) | D35: 13 | E35: Очно-заочная, 1 курс, Бюджетные места, Академический бакалавриат
A36: 16 | B36: 2553 | C36: 44.03.03 Специальное (дефектологическое) образование (Логопедия) | D36: 15 | E36: Очно-заочная, 1 курс, С оплатой обучения, Академический бакалавриат
A37: 16 | B37: 2556 | C37: 44.03.03 Специальное (дефектологическое) образование (Олигофренопедагогика) | D37: 2 | E37: Очно-заочная, 1 курс, Бюджетные места (Квота приема лиц, имеющих особое право), Академический бакалавриат
A38: 16 | B38: 2555 | C38: 44.03.03 Специальное (дефектологическое) образование (Олигофренопедагогика) | D38: 18 | E38: Очно-заочная, 1 курс, Бюджетные места, Академический бакалавриат
A39: 16 | B39: 2557 | C39: 44.03.03 Специальное (дефектологическое) образование (Олигофренопедагогика) | D39: 15 | E39: Очно-заочная, 1 курс, С оплатой обучения, Академический бакалавриат
A40: 16 | B40: 2567 | C40: 44.03.03 Специальное (дефектологическое) образование (Тифлопедагогика и сурдопедагогика) | D40: 0 | E40: Очно-заочная, 1 курс, Бюджетные места (Квота приема лиц, имеющих особое право), Академический бакалавриат
A41: 16 | B41: 2566 | C41: 44.03.03 Специальное (дефектологическое) образование (Тифлопедагогика и сурдопедагогика) | D41: 15 | E41: Очно-заочная, 1 курс, Бюджетные места, Академический бакалавриат
A42: 16 | B42: 2568 | C42: 44.03.03 Специальное (дефектологическое) образование (Тифлопедагогика и сурдопедагогика) | D42: 15 | E42: Очно-заочная, 1 курс, С оплатой обучения, Академический бакалавриат
A43: 16 | B43: 2554 | C43: 44.03.03 Специальное (дефектологическое) образование (Логопедия) | D43: 50 | E43: Заочная, 1 курс, С оплатой обучения, Академический бакалавриат
A44: 16 | B44: 2546 | C44: 44.04.03 Специальное (дефектологическое) образование (Инклюзивное образование детей с особыми образовательными потребностями) | D44: 20 | E44: Очно-заочная, 1 курс, Бюджетные места, На базе ВПО, Магистратура
A45: 16 | B45: 2547 | C45: 44.04.03 Специальное (дефектологическое) образование (Инклюзивное образование детей с особыми образовательными потребностями) | D45: 10 | E45: Очно-заочная, 1 курс, С оплатой обучения, На базе ВПО, Магистратура
A46: 16 | B46: 2569 | C46: 44.04.03 Специальное (дефектологическое) образование (Модернизация деятельности ПМПК в системе образования) | D46: 15 | E46: Очно-заочная, 1 курс, Бюджетные места, На базе ВПО, Магистратура
A47: 16 | B47: 2570 | C47: 44.04.03 Специальное (дефектологическое) образование (Модернизация деятельности ПМПК в системе образования) | D47: 10 | E47: Очно-заочная, 1 курс, С оплатой обучения, На базе ВПО, Магистратура
A48: 16 | B48: 2560 | C48: 44.04.03 Специальное (дефектологическое) образование (Психологическая помощь детям с ограниченными возможностями здоровья в системе образования) | D48: 15 | E48: Очно-заочная, 1 курс, Бюджетные места, На базе ВПО, Магистратура
A49: 16 | B49: 2561 | C49: 44.04.03 Специальное (дефектологическое) образование (Психологическая помощь детям с ограниченными возможностями здоровья в системе образования) | D49: 10 | E49: Очно-заочная, 1 курс, С оплатой обучения, На базе ВПО, Магистратура
A50: 16 | B50: 2558 | C50: 44.04.03 Специальное (дефектологическое) образование (Ранняя комплексная помощь детям с отклонениями в развитии) | D50: 20 | E50: Очно-заочная, 1 курс, Бюджетные места, На базе ВПО, Магистратура
A51: 16 | B51: 2559 | C51: 44.04.03 Специальное (дефектологическое) образование (Ранняя комплексная помощь детям с отклонениями в развитии) | D51: 10 | E51: Очно-заочная, 1 курс, С оплатой обучения, На базе ВПО, Магистратура
A52: 16 | B52: 2562 | C52: 44.04.03 Специальное (дефектологическое) образование (Система логопедической помощи в учреждениях образования и здравоохранения) | D52: 15 | E52: Очно-заочная, 1 курс, Бюджетные места, На базе ВПО, Магистратура
A53: 16 | B53: 2563 | C53: 44.04.03 Специальное (дефектологическое) образование (Система логопедической помощи в учреждениях образования и здравоохранения) | D53: 10 | E53: Очно-заочная, 1 курс, С оплатой обучения, На базе ВПО, Магистратура
A54: 16 | B54: 2564 | C54: 44.04.03 Специальное (дефектологическое) образование (Теория и практика комплексной реабилитации лиц с расстройствами аутистического спектра) | D54: 20 | E54: Очно-заочная, 1 курс, Бюджетные места, На базе ВПО, Магистратура
A55: 16 | B55: 2565 | C55: 44.04.03 Специальное (дефектологическое) образование (Теория и практика комплексной реабилитации лиц с расстройствами аутистического спектра) | D55: 10 | E55: Очно-заочная, 1 курс, С оплатой обучения, На базе ВПО, Магистратура
A56: 22 | B56: 2600 | C56: 09.03.03 Прикладная информатика (Прикладная информатика в менеджменте) | D56: 15 | E56: Очная, 1 курс, Бюджетные места, Академический бакалавриат
A57: 22 | B57: 2602 | C57: 09.03.03 Прикладная информатика (Прикладная информатика в менеджменте) | D57: 15 | E57: Очная, 1 курс, С оплатой обучения, Академический бакалавриат
A58: 22 | B58: 2597 | C58: 38.03.05 Бизнес-информатика (Технологическое предпринимательство) | D58: 20 | E58: Очная, 1 курс, Бюджетные места, Академический бакалавриат
A59: 22 | B59: 2599 | C59: 38.03.05 Бизнес-информатика (Технологическое предпринимательство) | D59: 15 | E59: Очная, 1 курс, С оплатой обучения, Академический бакалавриат
A60: 22 | B60: 2607 | C60: 44.03.01 Педагогическое образование (Информатика) | D60: 15 | E60: Очная, 1 курс, Бюджетные места, Академический бакалавриат
A61: 22 | B61: 2611 | C61: 44.03.01 Педагогическое образование (Информатика) | D61: 15 | E61: Очная, 1 курс, С оплатой обучения, Академический бакалавриат
A62: 22 | B62: 2614 | C62: 44.03.01 Педагогическое образование (Математика) | D62: 1 | E62: Очная, 1 курс, Бюджетные места (Квота приема лиц, имеющих особое право), Академический бакалавриат
A63: 22 | B63: 2613 | C63: 44.03.01 Педагогическое образование (Математика) | D63: 29 | E63: Очная, 1 курс, Бюджетные места, Академический бакалавриат
A64: 22 | B64: 2617 | C64: 44.03.01 Педагогическое образование (Математика) | D64: 15 | E64: Очная, 1 курс, С оплатой обучения, Академический бакалавриат
A65: 22 | B65: 2635 | C65: 44.03.05 Педагогическое образование (с двумя профилями подготовки) (Биология, иностранный язык) | D65: 1 | E65: Очная, 1 курс, Бюджетные места (Квота приема лиц, имеющих особое право), Академический бакалавриат
A66: 22 | B66: 2634 | C66: 44.03.05 Педагогическое образование (с двумя профилями подготовки) (Биология, иностранный язык) | D66: 14 | E66: Очная, 1 курс, Бюджетные места, Академический бакалавриат
A67: 22 | B67: 2636 | C67: 44.03.05 Педагогическое образование (с двумя профилями подготовки) (Биология, иностранный язык) | D67: 15 | E67: Очная, 1 курс, С оплатой обучения, Академический бакалавриат
A68: 22 | B68: 2631 | C68: 44.03.05 Педагогическое образование (с двумя профилями подготовки) (География, иностранный язык) | D68: 15 | E68: Очная, 1 курс, Бюджетные места, Академический бакалавриат
A69: 22 | B69: 2633 | C69: 44.03.05 Педагогическое образование (с двумя профилями подготовки) (География, иностранный язык) | D69: 15 | E69: Очная, 1 курс, С оплатой обучения, Академический бакалавриат
A70: 22 | B70: 2623 | C70: 44.03.05 Педагогическое образование (с двумя профилями подготовки) (Естествознание, биология) | D70: 15 | E70: Очная, 1 курс, Бюджетные места, Академический бакалавриат
A71: 22 | B71: 2625 | C71: 44.03.05 Педагогическое образование (с двумя профилями подготовки) (Естествознание, биология) | D71: 15 | E71: Очная, 1 курс, С оплатой обучения, Академический бакалавриат
A72: 22 | B72: 2644 | C72: 44.03.05 Педагогическое образование (с двумя профилями подготовки) (Информатика и технология) | D72: 15 | E72: Очная, 1 курс, Бюджетные места, Академический бакалавриат
A73: 22 | B73: 2646 | C73: 44.03.05 Педагогическое образование (с двумя профилями подготовки) (Информатика и технология) | D73: 15 | E73: Очная, 1 курс, С оплатой обучения, Академический бакалавриат
A74: 22 | B74: 2609 | C74: 44.03.01 Педагогическое образование (Информатика) | D74: 15 | E74: Очно-заочная, 1 курс, Бюджетные места, Академический бакалавриат
A75: 22 | B75: 2612 | C75: 44.03.01 Педагогическое образование (Информатика) | D75: 15 | E75: Очно-заочная, 1 курс, С оплатой обучения, Академический бакалавриат
A76: 22 | B76: 2616 | C76: 44.03.01 Педагогическое образование (Математика) | D76: 2 | E76: Заочная, 1 курс, Бюджетные места (Квота приема лиц, имеющих особое право), Академический бакалавриат
A77: 22 | B77: 2615 | C77: 44.03.01 Педагогическое образование (Математика) | D77: 13 | E77: Заочная, 1 курс, Бюджетные места, Академический бакалавриат
A78: 22 | B78: 2618 | C78: 44.03.01 Педагогическое образование (Математика) | D78: 15 | E78: Заочная, 1 курс, С оплатой обучения, Академический бакалавриат
A79: 22 | B79: 2603 | C79: 09.04.02 Информационные системы и технологии (Компьютерные обучающие системы) | D79: 15 | E79: Очная, 1 курс, Бюджетные места, На базе ВПО, Магистратура
A80: 22 | B80: 2604 | C80: 09.04.02 Информационные системы и технологии (Компьютерные обучающие системы) | D80: 10 | E80: Очная, 1 курс, С оплатой обучения, На базе ВПО, Магистратура
A81: 22 | B81: 2629 | C81: 09.04.03 Прикладная информатика (Прикладная информатика в образовании) | D81: 15 | E81: Очная, 1 курс, Бюджетные места, На базе ВПО, Магистратура
A82: 22 | B82: 2630 | C82: 09.04.03 Прикладная информатика (Прикладная информатика в образовании) | D82: 10 | E82: Очная, 1 курс, С оплатой обучения, На базе ВПО, Магистратура
A83: 22 | B83: 2605 | C83: 38.04.05 Бизнес-информатика (Менеджмент и аналитика в сфере IT индустрии) | D83: 15 | E83: Очная, 1 курс, Бюджетные места, На базе ВПО, Магистратура
A84: 22 | B84: 2606 | C84: 38.04.05 Бизнес-информатика (Менеджмент и аналитика в сфере IT индустрии) | D84: 10 | E84: Очная, 1 курс, С оплатой обучения, На базе ВПО, Магистратура
A85: 22 | B85: 2641 | C85: 44.04.01 Педагогическое образование (География и образовательный туризм) | D85: 15 | E85: Очная, 1 курс, Бюджетные места, На базе ВПО, Магистратура
A86: 22 | B86: 2642 | C86: 44.04.01 Педагогическое образование (География и образовательный туризм) | D86: 10 | E86: Очная, 1 курс, С оплатой обучения, На базе ВПО, Магистратура
A87: 22 | B87: 2637 | C87: 44.04.01 Педагогическое образование (Инновации в биологическом и химическом образовании) | D87: 15 | E87: Очная, 1 курс, Бюджетные места, На базе ВПО, Магистратура
A88: 22 | B88: 2638 | C88: 44.04.01 Педагогическое образование (Инновации в биологическом и химическом образовании) | D88: 10 | E88: Очная, 1 курс, С оплатой обучения, На базе ВПО, Магистратура
A89: 22 | B89: 2621 | C89: 44.04.01 Педагогическое образование (Информационные и телекоммуникационные технологии в образовании) | D89: 15 | E89: Очная, 1 курс, Бюджетные места, На базе ВПО, Магистратура
A90: 22 | B90: 2622 | C90: 44.04.01 Педагогическое образование (Информационные и телекоммуникационные технологии в образовании) | D90: 10 | E90: Очная, 1 курс, С оплатой обучения, На базе ВПО, Магистратура
A91: 22 | B91: 2639 | C91: 44.04.01 Педагогическое образование (Мехатроника, робототехника и электроника в образовании) | D91: 15 | E91: Очная, 1 курс, Бюджетные места, На базе ВПО, Магистратура
A92: 22 | B92: 2640 | C92: 44.04.01 Педагогическое образование (Мехатроника, робототехника и электроника в образовании) | D92: 10 | E92: Очная, 1 курс, С оплатой обучения, На базе ВПО, Магистратура
A93: 22 | B93: 2619 | C93: 44.04.01 Педагогическое образование (Преподавание математики в основной и старшей школах) | D93: 17 | E93: Очная, 1 курс, Бюджетные места, На базе ВПО, Магистратура
A94: 22 | B94: 2620 | C94: 44.04.01 Педагогическое образование (Преподавание математики в основной и старшей школах) | D94: 10 | E94: Очная, 1 курс, С оплатой обучения, На базе ВПО, Магистратура
A95: 22 | B95: 2627 | C95: 44.04.01 Педагогическое образование (Теория и методика обучения информатике в средней школе) | D95: 17 | E95: Очная, 1 курс, Бюджетные места, На базе ВПО, Магистратура
A96: 22 | B96: 2628 | C96: 44.04.01 Педагогическое образование (Теория и методика обучения информатике в средней школе) | D96: 10 | E96: Очная, 1 курс, С оплатой обучения, На базе ВПО, Магистратура
A97: 22 | B97: 2643 | C97: 38.04.05 Бизнес-информатика (Информационные системы бухгалтерского учета и финансового менеджмента) | D97: 15 | E97: Заочная, 1 курс, С оплатой обучения, На базе ВПО, Магистратура
A98: 22 | B98: 2647 | C98: 38.04.05 Бизнес-информатика (Финансовый менеджмент и автоматизация учетной деятельности в организации) | D98: 15 | E98: Заочная, 1 курс, С оплатой обучения, На базе ВПО, Магистратура
A99: 22 | B99: 2626 | C99: 44.04.01 Педагогическое образование (Международный бакалавриат: теория и технологии) | D99: 15 | E99: Заочная, 1 курс, С оплатой обучения, На базе ВПО, Магистратура
A100: 23 | B100: 2497 | C100: 40.03.01 Юриспруденция | D100: 4 | E100: Очная, 1 курс, Бюджетные места (Квота приема лиц, имеющих особое право), Академический бакалавриат
A101: 23 | B101: 2496 | C101: 40.03.01 Юриспруденция | D101: 28 | E101: Очная, 1 курс, Бюджетные места, Академический бакалавриат
A102: 23 | B102: 2502 | C102: 40.03.01 Юриспруденция | D102: 60 | E102: Очная, 1 курс, С оплатой обучения, Академический бакалавриат
A103: 23 | B103: 2509 | C103: 44.03.05 Педагогическое образование (с двумя профилями подготовки) (Право, обществознание) | D103: 18 | E103: Очная, 1 курс, Бюджетные места, Академический бакалавриат
A104: 23 | B104: 2511 | C104: 44.03.05 Педагогическое образование (с двумя профилями подготовки) (Право, обществознание) | D104: 15 | E104: Очная, 1 курс, С оплатой обучения, Академический бакалавриат
A105: 23 | B105: 2498 | C105: 40.03.01 Юриспруденция | D105: 20 | E105: Очно-заочная, 1 курс, Бюджетные места, Академический бакалавриат
A106: 23 | B106: 2503 | C106: 40.03.01 Юриспруденция | D106: 20 | E106: Очно-заочная, 1 курс, С оплатой обучения, Академический бакалавриат
A107: 23 | B107: 2501 | C107: 40.03.01 Юриспруденция | D107: 2 | E107: Заочная, 1 курс, Бюджетные места (Квота приема лиц, имеющих особое право), Академический бакалавриат
A108: 23 | B108: 2500 | C108: 40.03.01 Юриспруденция | D108: 23 | E108: Заочная, 1 курс, Бюджетные места, Академический бакалавриат
A109: 23 | B109: 2504 | C109: 40.03.01 Юриспруденция | D109: 100 | E109: Заочная, 1 курс, С оплатой обучения, Академический бакалавриат
A110: 23 | B110: 2508 | C110: 40.03.01 Юриспруденция (Гражданское право) | D110: 15 | E110: Заочная, 1 курс, С оплатой обучения, На базе ВПО, Академический бакалавриат
A111: 23 | B111: 2518 | C111: 40.04.01 Юриспруденция (Гражданско-правовое регулирование деятельности некоммерческих организаций) | D111: 13 | E111: Очная, 1 курс, Бюджетные места, На базе ВПО, Магистратура
A112: 23 | B112: 2519 | C112: 40.04.01 Юриспруденция (Гражданско-правовое регулирование деятельности некоммерческих организаций) | D112: 10 | E112: Очная, 1 курс, С оплатой обучения, На базе ВПО, Магистратура
A113: 23 | B113: 2918 | C113: 40.04.01 Юриспруденция (Организация и деятельность государственных и муниципальных органов власти в г. Москве) | D113: 5 | E113: Очная, 1 курс, Целевой прием, На базе ВПО, Магистратура
A114: 23 | B114: 2516 | C114: 40.04.01 Юриспруденция (Организация и деятельность государственных и муниципальных органов власти в г. Москве) | D114: 15 | E114: Очная, 1 курс, Бюджетные места, На базе ВПО, Магистратура
A115: 23 | B115: 2517 | C115: 40.04.01 Юриспруденция (Организация и деятельность государственных и муниципальных органов власти в г. Москве) | D115: 10 | E115: Очная, 1 курс, С оплатой обучения, На базе ВПО, Магистратура
A116: 23 | B116: 2917 | C116: 40.04.01 Юриспруденция (Теория и практика правотворчества и правоприменения. Разрешение межотраслевых проблем в сфере юриспруденции) | D116: 1 | E116: Очная, 1 курс, Целевой прием, На базе ВПО, Магистратура
A117: 23 | B117: 2514 | C117: 40.04.01 Юриспруденция (Теория и практика правотворчества и правоприменения. Разрешение межотраслевых проблем в сфере юриспруденции) | D117: 14 | E117: Очная, 1 курс, Бюджетные места, На базе ВПО, Магистратура
A118: 23 | B118: 2515 | C118: 40.04.01 Юриспруденция (Теория и практика правотворчества и правоприменения. Разрешение межотраслевых проблем в сфере юриспруденции) | D118: 10 | E118: Очная, 1 курс, С оплатой обучения, На базе ВПО, Магистратура
A119: 23 | B119: 2505 | C119: 40.04.01 Юриспруденция (Образовательное право) | D119: 30 | E119: Очно-заочная, 1 курс, Бюджетные места, На базе ВПО, Магистратура
A120: 23 | B120: 2506 | C120: 40.04.01 Юриспруденция (Образовательное право) | D120: 10 | E120: Очно-заочная, 1 курс, С оплатой обучения, На базе ВПО, Магистратура
A121: 23 | B121: 2512 | C121: 44.04.01 Педагогическое образование (Теория и методика преподавания права. Защита прав участников образовательного процесса) | D121: 15 | E121: Очно-заочная, 1 курс, Бюджетные места, На базе ВПО, Магистратура
A122: 23 | B122: 2513 | C122: 44.04.01 Педагогическое образование (Теория и методика преподавания права. Защита прав участников образовательного процесса) | D122: 10 | E122: Очно-заочная, 1 курс, С оплатой обучения, На базе ВПО, Магистратура
A123: 23 | B123: 2507 | C123: 40.04.01 Юриспруденция (Уголовное право, уголовный процесс) | D123: 15 | E123: Заочная, 1 курс, С оплатой обучения, На базе ВПО, Магистратура
A124: 24 | B124: 2664 | C124: 44.03.01 Педагогическое образование (Изобразительное искусство) | D124: 15 | E124: Очная, 1 курс, Бюджетные места, Академический бакалавриат
A125: 24 | B125: 2666 | C125: 44.03.01 Педагогическое образование (Изобразительное искусство) | D125: 15 | E125: Очная, 1 курс, С оплатой обучения, Академический бакалавриат
A126: 24 | B126: 2662 | C126: 44.03.01 Педагогическое образование (Музыка) | D126: 1 | E126: Очная, 1 курс, Бюджетные места (Квота приема лиц, имеющих особое право), Академический бакалавриат
A127: 24 | B127: 2661 | C127: 44.03.01 Педагогическое образование (Музыка) | D127: 14 | E127: Очная, 1 курс, Бюджетные места, Академический бакалавриат
A128: 24 | B128: 2663 | C128: 44.03.01 Педагогическое образование (Музыка) | D128: 15 | E128: Очная, 1 курс, С оплатой обучения, Академический бакалавриат
A129: 24 | B129: 2667 | C129: 44.03.01 Педагогическое образование (Художественное образование (в области театрального искусства) | D129: 15 | E129: Очная, 1 курс, Бюджетные места, Академический бакалавриат
A130: 24 | B130: 2669 | C130: 44.03.01 Педагогическое образование (Художественное образование (в области театрального искусства) | D130: 15 | E130: Очная, 1 курс, С оплатой обучения, Академический бакалавриат
A131: 24 | B131: 2654 | C131: 51.03.03 Социально-культурная деятельность (Организация и постановка культурно-досуговых программ в сфере образования и культуры) | D131: 1 | E131: Очная, 1 курс, Бюджетные места (Квота приема лиц, имеющих особое право), Академический бакалавриат
A132: 24 | B132: 2653 | C132: 51.03.03 Социально-культурная деятельность (Организация и постановка культурно-досуговых программ в сфере образования и культуры) | D132: 19 | E132: Очная, 1 курс, Бюджетные места, Академический бакалавриат
A133: 24 | B133: 2657 | C133: 51.03.03 Социально-культурная деятельность (Организация и постановка культурно-досуговых программ в сфере образования и культуры) | D133: 15 | E133: Очная, 1 курс, С оплатой обучения, Академический бакалавриат
A134: 24 | B134: 2651 | C134: 54.03.01 Дизайн (Дизайн среды) | D134: 1 | E134: Очная, 1 курс, Бюджетные места (Квота приема лиц, имеющих особое право), Академический бакалавриат
A135: 24 | B135: 2650 | C135: 54.03.01 Дизайн (Дизайн среды) | D135: 17 | E135: Очная, 1 курс, Бюджетные места, Академический бакалавриат
A136: 24 | B136: 2652 | C136: 54.03.01 Дизайн (Дизайн среды) | D136: 15 | E136: Очная, 1 курс, С оплатой обучения, Академический бакалавриат
A137: 24 | B137: 2671 | C137: 54.03.02 Декоративно-прикладное искусство и народные промыслы (Арт-технологии в декоративно-прикладном искусстве) | D137: 12 | E137: Очная, 1 курс, Бюджетные места, Академический бакалавриат
A138: 24 | B138: 2673 | C138: 54.03.02 Декоративно-прикладное искусство и народные промыслы (Арт-технологии в декоративно-прикладном искусстве) | D138: 15 | E138: Очная, 1 курс, С оплатой обучения, Академический бакалавриат
A139: 24 | B139: 2670 | C139: 44.03.01 Педагогическое образование (Художественное образование (в области хореографии) | D139: 20 | E139: Заочная, 1 курс, С оплатой обучения, Академический бакалавриат
A140: 24 | B140: 2655 | C140: 51.03.03 Социально-культурная деятельность (Организация и постановка культурно-досуговых программ в сфере образования и культуры) | D140: 15 | E140: Заочная, 1 курс, Бюджетные места, Академический бакалавриат
A141: 24 | B141: 2658 | C141: 51.03.03 Социально-культурная деятельность (Организация и постановка культурно-досуговых программ в сфере образования и культуры) | D141: 15 | E141: Заочная, 1 курс, С оплатой обучения, Академический бакалавриат
A142: 24 | B142: 2675 | C142: 52.05.01 Актерское искусство (Артист драматического театра и кино) | D142: 0 | E142: Очная, 1 курс, Бюджетные места (Квота приема лиц, имеющих особое право), Специалитет
A143: 24 | B143: 2674 | C143: 52.05.01 Актерское искусство (Артист драматического театра и кино) | D143: 10 | E143: Очная, 1 курс, Бюджетные места, Специалитет
A144: 24 | B144: 2676 | C144: 52.05.01 Актерское искусство (Артист драматического театра и кино) | D144: 5 | E144: Очная, 1 курс, С оплатой обучения, Специалитет
A145: 24 | B145: 2648 | C145: 44.04.01 Педагогическое образование (ИКИ) | D145: 48 | E145: Очная, 1 курс, Бюджетные места, На базе ВПО, Магистратура
A146: 24 | B146: 2649 | C146: 44.04.01 Педагогическое образование (ИКИ) | D146: 10 | E146: Очная, 1 курс, С оплатой обучения, На базе ВПО, Магистратура
A147: 24 | B147: 2659 | C147: 51.04.03 Социально-культурная деятельность (Управление эвент-проектами в учреждениях социально-культурной сферы и образования) | D147: 20 | E147: Очная, 1 курс, Бюджетные места, На базе ВПО, Магистратура
A148: 24 | B148: 2660 | C148: 51.04.03 Социально-культурная деятельность (Управление эвент-проектами в учреждениях социально-культурной сферы и образования) | D148: 10 | E148: Очная, 1 курс, С оплатой обучения, На базе ВПО, Магистратура
A149: 24 | B149: 2677 | C149: 53.04.01 (050130.68) Музыкально-инструментальное искусство (Инструментальное исполнительство) | D149: 10 | E149: Очная, 1 курс, Бюджетные места, На базе ВПО, Магистратура
A150: 24 | B150: 2678 | C150: 53.04.01 (050130.68) Музыкально-инструментальное искусство (Инструментальное исполнительство) | D150: 10 | E150: Очная, 1 курс, С оплатой обучения, На базе ВПО, Магистратура
A151: 24 | B151: 2679 | C151: 53.04.02 Вокальное искусство (Академический и эстрадно-джазовый вокал) | D151: 15 | E151: Очная, 1 курс, Бюджетные места, На базе ВПО, Магистратура
A152: 24 | B152: 2680 | C152: 53.04.02 Вокальное искусство (Академический и эстрадно-джазовый вокал) | D152: 10 | E152: Очная, 1 курс, С оплатой обучения, На базе ВПО, Магистратура
A153: 24 | B153: 2681 | C153: 54.04.01 Дизайн (Коммуникативный дизайн) | D153: 15 | E153: Очная, 1 курс, Бюджетные места, На базе ВПО, Магистратура
A154: 24 | B154: 2682 | C154: 54.04.01 Дизайн (Коммуникативный дизайн) | D154: 10 | E154: Очная, 1 курс, С оплатой обучения, На базе ВПО, Магистратура
A155: 28 | B155: 2870 | C155: 44.02.05 Коррекционная педагогика в начальном образовании (Учитель начальных классов и начальных классов компенсирующего и коррекционно-развивающего образования) | D155: 10 | E155: Очная, 1 курс, Бюджетные места, Специальность среднего профессионального образования
A156: 28 | B156: 2823 | C156: 44.02.05 Коррекционная педагогика в начальном образовании (Учитель начальных классов и начальных классов компенсирующего и коррекционно-развивающего образования) | D156: 20 | E156: Очная, 1 курс, С оплатой обучения, Специальность среднего профессионального образования
A157: 28, 30, 32, 33, 34, 35 | B157: 2864 | C157: 44.02.01 Дошкольное образование (Воспитатель детей дошкольного возраста) | D157: 120 | E157: Заочная, 1 курс, С оплатой обучения, Специальность среднего профессионального образования
A158: 28, 33, 34, 35 | B158: 2867 | C158: 44.02.02 Преподавание в начальных классах (Учитель начальных классов) | D158: 80 | E158: Заочная, 1 курс, С оплатой обучения, Специальность среднего профессионального образования
A159: 28, 33, 35 | B159: 2854 | C159: 44.02.05 Коррекционная педагогика в начальном образовании (Учитель начальных классов и начальных классов компенсирующего и коррекционно-развивающего образования) | D159: 10 | E159: Очная, 1 курс, Бюджетные места, На базе основного общего образования, Специальность среднего профессионального образования
A160: 28, 33, 35 | B160: 2839 | C160: 44.02.05 Коррекционная педагогика в начальном образовании (Учитель начальных классов и начальных классов компенсирующего и коррекционно-развивающего образования) | D160: 30 | E160: Очная, 1 курс, С оплатой обучения, На базе основного общего образования, Специальность среднего профессионального образования
A161: 28, 35 | B161: 2852 | C161: 44.02.04 Специальное дошкольное образование (Воспитатель детей дошкольного возраста с отклонениями в развитии и с сохранным развитием) | D161: 10 | E161: Очная, 1 курс, Бюджетные места, На базе основного общего образования, Специальность среднего профессионального образования
A162: 28, 35 | B162: 2837 | C162: 44.02.04 Специальное дошкольное образование (Воспитатель детей дошкольного возраста с отклонениями в развитии и с сохранным развитием) | D162: 20 | E162: Очная, 1 курс, С оплатой обучения, На базе основного общего образования, Специальность среднего профессионального образования
A163: 3 | B163: 2572 | C163: 37.03.01 Психология | D163: 2 | E163: Очная, 1 курс, Бюджетные места (Квота приема лиц, имеющих особое право), Академический бакалавриат
A164: 3 | B164: 2571 | C164: 37.03.01 Психология | D164: 18 | E164: Очная, 1 курс, Бюджетные места, Академический бакалавриат
A165: 3 | B165: 2577 | C165: 37.03.01 Психология | D165: 15 | E165: Очная, 1 курс, С оплатой обучения, Академический бакалавриат
A166: 3 | B166: 2574 | C166: 39.03.01 Социология | D166: 1 | E166: Очная, 1 курс, Бюджетные места (Квота приема лиц, имеющих особое право), Академический бакалавриат
A167: 3 | B167: 2573 | C167: 39.03.01 Социология | D167: 14 | E167: Очная, 1 курс, Бюджетные места, Академический бакалавриат
A168: 3 | B168: 2578 | C168: 39.03.01 Социология | D168: 15 | E168: Очная, 1 курс, С оплатой обучения, Академический бакалавриат
A169: 3 | B169: 2575 | C169: 39.03.03 Организация работы с молодежью | D169: 15 | E169: Очная, 1 курс, Бюджетные места, Академический бакалавриат
A170: 3 | B170: 2579 | C170: 39.03.03 Организация работы с молодежью | D170: 15 | E170: Очная, 1 курс, С оплатой обучения, Академический бакалавриат
A171: 3 | B171: 2580 | C171: 37.03.01 Психология | D171: 15 | E171: Заочная, 1 курс, С оплатой обучения, Академический бакалавриат
A172: 3 | B172: 2582 | C172: 39.03.02 Социальная работа (Социально-психологическая работа с населением) | D172: 2 | E172: Заочная, 1 курс, Бюджетные места (Квота приема лиц, имеющих особое право), Академический бакалавриат
A173: 3 | B173: 2581 | C173: 39.03.02 Социальная работа (Социально-психологическая работа с населением) | D173: 18 | E173: Заочная, 1 курс, Бюджетные места, Академический бакалавриат
A174: 3 | B174: 2583 | C174: 39.03.02 Социальная работа (Социально-психологическая работа с населением) | D174: 15 | E174: Заочная, 1 курс, С оплатой обучения, Академический бакалавриат
A175: 3 | B175: 2584 | C175: 44.03.03 Специальное (дефектологическое) образование (Специальная психология) | D175: 15 | E175: Заочная, 1 курс, С оплатой обучения, Академический бакалавриат
A176: 3 | B176: 2587 | C176: 37.04.01 Психология (Семейная психология и семейное консультирование) | D176: 20 | E176: Очная, 1 курс, Бюджетные места, На базе ВПО, Магистратура
A177: 3 | B177: 2588 | C177: 37.04.01 Психология (Семейная психология и семейное консультирование) | D177: 10 | E177: Очная, 1 курс, С оплатой обучения, На базе ВПО, Магистратура
A178: 3 | B178: 2585 | C178: 39.04.01 Социология (Социология маркетинга и рекламы) | D178: 20 | E178: Очная, 1 курс, Бюджетные места, На базе ВПО, Магистратура
A179: 3 | B179: 2586 | C179: 39.04.01 Социология (Социология маркетинга и рекламы) | D179: 10 | E179: Очная, 1 курс, С оплатой обучения, На базе ВПО, Магистратура
A180: 3 | B180: 2591 | C180: 39.04.02 Социальная работа (Социально-правовые технологии работы с малолетними правонарушителями) | D180: 15 | E180: Очная, 1 курс, Бюджетные места, На базе ВПО, Магистратура
A181: 3 | B181: 2592 | C181: 39.04.02 Социальная работа (Социально-правовые технологии работы с малолетними правонарушителями) | D181: 10 | E181: Очная, 1 курс, С оплатой обучения, На базе ВПО, Магистратура
A182: 3 | B182: 2595 | C182: 44.04.01 Педагогическое образование (Психологическая диагностика развития детей с различными образовательными потребностями) | D182: 15 | E182: Очная, 1 курс, Бюджетные места, На базе ВПО, Магистратура
A183: 3 | B183: 2596 | C183: 44.04.01 Педагогическое образование (Психологическая диагностика развития детей с различными образовательными потребностями) | D183: 10 | E183: Очная, 1 курс, С оплатой обучения, На базе ВПО, Магистратура
A184: 3 | B184: 2589 | C184: 44.04.02 Психолого-педагогическое образование (Методы и техники клинической психологии) | D184: 15 | E184: Очная, 1 курс, Бюджетные места, На базе ВПО, Магистратура
A185: 3 | B185: 2590 | C185: 44.04.02 Психолого-педагогическое образование (Методы и техники клинической психологии) | D185: 10 | E185: Очная, 1 курс, С оплатой обучения, На базе ВПО, Магистратура
A186: 3 | B186: 2593 | C186: 44.04.02 Психолого-педагогическое образование (Методы и технологии психологического консультирования в образовательных учреждениях) | D186: 15 | E186: Очная, 1 курс, Бюджетные места, На базе ВПО, Магистратура
A187: 3 | B187: 2594 | C187: 44.04.02 Психолого-педагогическое образование (Методы и технологии психологического консультирования в образовательных учреждениях) | D187: 10 | E187: Очная, 1 курс, С оплатой обучения, На базе ВПО, Магистратура
A188: 30 | B188: 2858 | C188: 51.02.01 Народное художественное творчество (по видам) (Руководитель любительского творческого коллектива, преподаватель) | D188: 15 | E188: Очная, 1 курс, Бюджетные места, На базе основного общего образования, Специальность среднего профессионального образования
A189: 30 | B189: 2859 | C189: 51.02.01 Народное художественное творчество (по видам) (Руководитель любительского творческого коллектива, преподаватель) | D189: 15 | E189: Очная, 1 курс, С оплатой обучения, На базе основного общего образования, Специальность среднего профессионального образования
A190: 30, 32, 33, 34 | B190: 2848 | C190: 44.02.02 Преподавание в начальных классах (Учитель начальных классов) | D190: 15 | E190: Очная, 1 курс, Бюджетные места, На базе основного общего образования, Специальность среднего профессионального образования
A191: 30, 32, 33, 34 | B191: 2849 | C191: 44.02.02 Преподавание в начальных классах (Учитель начальных классов) | D191: 60 | E191: Очная, 1 курс, С оплатой обучения, На базе основного общего образования, Специальность среднего профессионального образования
A192: 30, 32, 34 | B192: 2846 | C192: 44.02.01 Дошкольное образование (Воспитатель детей дошкольного возраста) | D192: 10 | E192: Очная, 1 курс, Бюджетные места, На базе основного общего образования, Специальность среднего профессионального образования
A193: 30, 32, 34 | B193: 2847 | C193: 44.02.01 Дошкольное образование (Воспитатель детей дошкольного возраста) | D193: 40 | E193: Очная, 1 курс, С оплатой обучения, На базе основного общего образования, Специальность среднего профессионального образования
A194: 32 | B194: 2862 | C194: 44.02.01 Дошкольное образование (Воспитатель детей дошкольного возраста) | D194: 10 | E194: Очная, 1 курс, Бюджетные места, Специальность среднего профессионального образования
A195: 32 | B195: 2863 | C195: 44.02.01 Дошкольное образование (Воспитатель детей дошкольного возраста) | D195: 20 | E195: Очная, 1 курс, С оплатой обучения, Специальность среднего профессионального образования
A196: 32 | B196: 2850 | C196: 44.02.03 Педагогика дополнительного образования (Педагог дополнительного образования в области сценической деятельности) | D196: 10 | E196: Очная, 1 курс, Бюджетные места, На базе основного общего образования, Специальность среднего профессионального образования
A197: 32 | B197: 2851 | C197: 44.02.03 Педагогика дополнительного образования (Педагог дополнительного образования в области сценической деятельности) | D197: 5 | E197: Очная, 1 курс, С оплатой обучения, На базе основного общего образования, Специальность среднего профессионального образования
A198: 33, 34 | B198: 2865 | C198: 44.02.02 Преподавание в начальных классах (Учитель начальных классов) | D198: 10 | E198: Очная, 1 курс, Бюджетные места, Специальность среднего профессионального образования
A199: 33, 34 | B199: 2866 | C199: 44.02.02 Преподавание в начальных классах (Учитель начальных классов) | D199: 40 | E199: Очная, 1 курс, С оплатой обучения, Специальность среднего профессионального образования
A200: 34 | B200: 2919 | C200: 49.02.01 Физическая культура (Учитель физической культуры) | D200: 10 | E200: Очная, 1 курс, Бюджетные места, На базе основного общего образования, Специальность среднего профессионального образования
... 177 more rows

Sheet StudentPetitions (hidden)
A1: EnterPlan_Id | B1: StudentPetition_Irn | C1: Student_Title | D1: ExamForm
A2: 2444 | B2: 0001ДИР_ПОМ_НАП_Д_2_17 | C2: Маркова Светлана Михайловна | D2: По результатам вступительных испытаний, проводимых организацией самостоятельно
A3: 2444 | B3: 0002ДИР_ПОМ_НАП_Д_2_17 | C3: Булычева Наталья Владимировна | D3: По результатам вступительных испытаний, проводимых организацией самостоятельно
A4: 2444 | B4: 0003ДИР_ПОМ_НАП_Д_2_17 | C4: Гусарова Кристина Владимировна | D4: По результатам вступительных испытаний, проводимых организацией самостоятельно
A5: 2444 | B5: 0004ДИР_ПОМ_НАП_Д_2_17 | C5: Яковлева Марина Владимировна | D5: По результатам вступительных испытаний, проводимых организацией самостоятельно
A6: 2444 | B6: 0005ДИР_ПОМ_НАП_Д_2_17 | C6: Степанова Дина Зямильевна | D6: По результатам вступительных испытаний, проводимых организацией самостоятельно
A7: 2444 | B7: 0006ДИР_ПОМ_НАП_Д_2_17 | C7: Власова Елена Михайловна | D7: По результатам вступительных испытаний, проводимых организацией самостоятельно
A8: 2444 | B8: 0007ДИР_ПОМ_НАП_Д_2_17 | C8: Желябин Кирилл Сергеевич | D8: По результатам вступительных испытаний, проводимых организацией самостоятельно
A9: 2444 | B9: 0008ДИР_ПОМ_НАП_Д_2_17 | C9: Иванчиков Аркадий Борисович | D9: По результатам вступительных испытаний, проводимых организацией самостоятельно
A10: 2444 | B10: 0009ДИР_ПОМ_НАП_Д_2_17 | C10: Евсеева Наталья Сергеевна | D10: По результатам вступительных испытаний, проводимых организацией самостоятельно
A11: 2444 | B11: 0010ДИР_ПОМ_НАП_Д_2_17 | C11: Палкина Ксения Александровна | D11: По результатам вступительных испытаний, проводимых организацией самостоятельно
A12: 2444 | B12: 0011ДИР_ПОМ_НАП_Д_2_17 | C12: Монахова Галина Михайловна | D12: По результатам вступительных испытаний, проводимых организацией самостоятельно
A13: 2444 | B13: 0012ДИР_ПОМ_НАП_Д_2_17 | C13: Туева Ольга Дмитриевна | D13: По результатам вступительных испытаний, проводимых организацией самостоятельно
A14: 2444 | B14: 0013ДИР_ПОМ_НАП_Д_2_17 | C14: Егорова Светлана Владимировна | D14: По результатам вступительных испытаний, проводимых организацией самостоятельно
A15: 2444 | B15: 0014ДИР_ПОМ_НАП_Д_2_17 | C15: Горчакова Екатерина Вадимовна | D15: По результатам вступительных испытаний, проводимых организацией самостоятельно
A16: 2444 | B16: 0015ДИР_ПОМ_НАП_Д_2_17 | C16: Черненко Лидия Михайловна | D16: По результатам вступительных испытаний, проводимых организацией самостоятельно
A17: 2444 | B17: 0016ДИР_ПОМ_НАП_Д_2_17 | C17: Королева Христина Максимовна | D17: По результатам вступительных испытаний, проводимых организацией самостоятельно
A18: 2444 | B18: 0017ДИР_ПОМ_НАП_Д_2_17 | C18: Катышев Сергей Викторович | D18: По результатам вступительных испытаний, проводимых организацией самостоятельно
A19: 2444 | B19: 0018ДИР_ПОМ_НАП_Д_2_17 | C19: Кольцова Оксана Николаевна | D19: По результатам вступительных испытаний, проводимых организацией самостоятельно
A20: 2444 | B20: 0019ДИР_ПОМ_НАП_Д_2_17 | C20: Нечипорук Татьяна Юрьевна | D20: По результатам вступительных испытаний, проводимых организацией самостоятельно
A21: 2444 | B21: 0020ДИР_ПОМ_НАП_Д_2_17 | C21: Самсонова Мария Игоревна | D21: По результатам вступительных испытаний, проводимых организацией самостоятельно
A22: 2444 | B22: 0021ДИР_ПОМ_НАП_Д_2_17 | C22: Марясина Кира Сергеевна | D22: По результатам вступительных испытаний, проводимых организацией самостоятельно
A23: 2444 | B23: 0022ДИР_ПОМ_НАП_Д_2_17 | C23: Волкова Дарья Леонидовна | D23: По результатам вступительных испытаний, проводимых организацией самостоятельно
A24: 2444 | B24: 0023ДИР_ПОМ_НАП_Д_2_17 | C24: Царькова Анастасия Алексеевна | D24: По результатам вступительных испытаний, проводимых организацией самостоятельно
A25: 2444 | B25: 0024ДИР_ПОМ_НАП_Д_2_17 | C25: Попова Валентина Ивановна | D25: По результатам вступительных испытаний, проводимых организацией самостоятельно
A26: 2444 | B26: 0025ДИР_ПОМ_НАП_Д_2_17 | C26: Горицкая Ксения Борисовна | D26: По результатам вступительных испытаний, проводимых организацией самостоятельно
A27: 2444 | B27: 0026ДИР_ПОМ_НАП_Д_2_17 | C27: Никитенко Ольга Владимировна | D27: По результатам вступительных испытаний, проводимых организацией самостоятельно
A28: 2444 | B28: 0027ДИР_ПОМ_НАП_Д_2_17 | C28: Пряхина Елена Александровна | D28: По результатам вступительных испытаний, проводимых организацией самостоятельно
A29: 2444 | B29: 0028ДИР_ПОМ_НАП_Д_2_17 | C29: Власова Ирина Александровна | D29: По результатам вступительных испытаний, проводимых организацией самостоятельно
A30: 2444 | B30: 0029ДИР_ПОМ_НАП_Д_2_17 | C30: Солдаткина Екатерина Ивановна | D30: По результатам вступительных испытаний, проводимых организацией самостоятельно
A31: 2444 | B31: 0030ДИР_ПОМ_НАП_Д_2_17 | C31: Вебер Владимир Валерьевич | D31: По результатам вступительных испытаний, проводимых организацией самостоятельно
A32: 2444 | B32: 0031ДИР_ПОМ_НАП_Д_2_17 | C32: Зверев Андрей Петрович | D32: По результатам вступительных испытаний, проводимых организацией самостоятельно
A33: 2444 | B33: 0032ДИР_ПОМ_НАП_Д_2_17 | C33: Бойко Леонид Александрович | D33: По результатам вступительных испытаний, проводимых организацией самостоятельно
A34: 2444 | B34: 0033ДИР_ПОМ_НАП_Д_2_17 | C34: Хавренкова Ирина Юрьевна | D34: По результатам вступительных испытаний, проводимых организацией самостоятельно
A35: 2444 | B35: 0034ДИР_ПОМ_НАП_Д_2_17 | C35: Смольянова Екатерина Сергеевна | D35: По результатам вступительных испытаний, проводимых организацией самостоятельно
A36: 2444 | B36: 0035ДИР_ПОМ_НАП_Д_2_17 | C36: Момотова Галина Викторовна | D36: По результатам вступительных испытаний, проводимых организацией самостоятельно
A37: 2444 | B37: 0036ДИР_ПОМ_НАП_Д_2_17 | C37: Ландо Ольга Алексеевна | D37: По результатам вступительных испытаний, проводимых организацией самостоятельно
A38: 2444 | B38: 0037ДИР_ПОМ_НАП_Д_2_17 | C38: Гориславская Лариса Александровна | D38: По результатам вступительных испытаний, проводимых организацией самостоятельно
A39: 2444 | B39: 0038ДИР_ПОМ_НАП_Д_2_17 | C39: Черниогло Анастасия Владимировна | D39: По результатам вступительных испытаний, проводимых организацией самостоятельно
A40: 2444 | B40: 0039ДИР_ПОМ_НАП_Д_2_17 | C40: Дюба Олеся Владимировна | D40: По результатам вступительных испытаний, проводимых организацией самостоятельно
A41: 2444 | B41: 0040ДИР_ПОМ_НАП_Д_2_17 | C41: Лимонова Татьяна Александровна | D41: По результатам вступительных испытаний, проводимых организацией самостоятельно
A42: 2444 | B42: 0041ДИР_ПОМ_НАП_Д_2_17 | C42: Савилова Елена Владимировна | D42: По результатам вступительных испытаний, проводимых организацией самостоятельно
A43: 2444 | B43: 0042ДИР_ПОМ_НАП_Д_2_17 | C43: Павлова Анна Сергеевна | D43: По результатам вступительных испытаний, проводимых организацией самостоятельно
A44: 2444 | B44: 0043ДИР_ПОМ_НАП_Д_2_17 | C44: Резников Сергей Сергеевич | D44: По результатам вступительных испытаний, проводимых организацией самостоятельно
A45: 2444 | B45: 0044ДИР_ПОМ_НАП_Д_2_17 | C45: Васильева Наталья Анатольевна | D45: По результатам вступительных испытаний, проводимых организацией самостоятельно
A46: 2444 | B46: 0045ДИР_ПОМ_НАП_Д_2_17 | C46: Эмирова Кристина Владимировна | D46: По результатам вступительных испытаний, проводимых организацией самостоятельно
A47: 2444 | B47: 0046ДИР_ПОМ_НАП_Д_2_17 | C47: Шушковская Александра Ивановна | D47: По результатам вступительных испытаний, проводимых организацией самостоятельно
A48: 2444 | B48: 0047ДИР_ПОМ_НАП_Д_2_17 | C48: Кузнецова Кристина Александровна | D48: По результатам вступительных испытаний, проводимых организацией самостоятельно
A49: 2444 | B49: 0048ДИР_ПОМ_НАП_Д_2_17 | C49: Словягина Ирина Алексеевна | D49: По результатам вступительных испытаний, проводимых организацией самостоятельно
A50: 2444 | B50: 0049ДИР_ПОМ_НАП_Д_2_17 | C50: Ахмадова Гюльнара Фейтуллаевна | D50: По результатам вступительных испытаний, проводимых организацией самостоятельно
A51: 2444 | B51: 0050ДИР_ПОМ_НАП_Д_2_17 | C51: Горлова Ольга Александровна | D51: По результатам вступительных испытаний, проводимых организацией самостоятельно
A52: 2444 | B52: 0051ДИР_ПОМ_НАП_Д_2_17 | C52: Филонова Анна Сергеевна | D52: По результатам вступительных испытаний, проводимых организацией самостоятельно
A53: 2444 | B53: 0052ДИР_ПОМ_НАП_Д_2_17 | C53: Соколов Сергей Викторович | D53: По результатам вступительных испытаний, проводимых организацией самостоятельно
A54: 2444 | B54: 0053ДИР_ПОМ_НАП_Д_2_17 | C54: Алексеева Яна Евгеньевна | D54: По результатам вступительных испытаний, проводимых организацией самостоятельно
A55: 2444 | B55: 0054ДИР_ПОМ_НАП_Д_2_17 | C55: Соколова Екатерина Васильевна | D55: По результатам вступительных испытаний, проводимых организацией самостоятельно
A56: 2444 | B56: 0055ДИР_ПОМ_НАП_Д_2_17 | C56: Иванова Вероника Олеговна | D56: По результатам вступительных испытаний, проводимых организацией самостоятельно
A57: 2444 | B57: 0056ДИР_ПОМ_НАП_Д_2_17 | C57: Резникова Руслана Александровна | D57: По результатам вступительных испытаний, проводимых организацией самостоятельно
A58: 2444 | B58: 0057ДИР_ПОМ_НАП_Д_2_17 | C58: Резников Константин Сергеевич | D58: По результатам вступительных испытаний, проводимых организацией самостоятельно
A59: 2444 | B59: 0058ДИР_ПОМ_НАП_Д_2_17 | C59: Воронова Александра Игоревна | D59: По результатам вступительных испытаний, проводимых организацией самостоятельно
A60: 2444 | B60: 0059ДИР_ПОМ_НАП_Д_2_17 | C60: Калинин Валерий Михайлович | D60: По результатам вступительных испытаний, проводимых организацией самостоятельно
A61: 2444 | B61: 0060ДИР_ПОМ_НАП_Д_2_17 | C61: Шалунова Валерия Валерьевна | D61: По результатам вступительных испытаний, проводимых организацией самостоятельно
A62: 2444 | B62: 0061ДИР_ПОМ_НАП_Д_2_17 | C62: Корчагина Лиана Акоповна | D62: По результатам вступительных испытаний, проводимых организацией самостоятельно
A63: 2444 | B63: 0062ДИР_ПОМ_НАП_Д_2_17 | C63: Кедрина Дарья Дмитриевна | D63: По результатам вступительных испытаний, проводимых организацией самостоятельно
A64: 2444 | B64: 0063ДИР_ПОМ_НАП_Д_2_17 | C64: Кедрина Евгения Дмитриевна | D64: По результатам вступительных испытаний, проводимых организацией самостоятельно
A65: 2445 | B65: 0001К_ДИР_ПОМ_НАП_Д_2_17 | C65: Маркова Светлана Михайловна | D65: По результатам вступительных испытаний, проводимых организацией самостоятельно
A66: 2445 | B66: 0002К_ДИР_ПОМ_НАП_Д_2_17 | C66: Булычева Наталья Владимировна | D66: По результатам вступительных испытаний, проводимых организацией самостоятельно
A67: 2445 | B67: 0003К_ДИР_ПОМ_НАП_Д_2_17 | C67: Гусарова Кристина Владимировна | D67: По результатам вступительных испытаний, проводимых организацией самостоятельно
A68: 2445 | B68: 0004К_ДИР_ПОМ_НАП_Д_2_17 | C68: Яковлева Марина Владимировна | D68: По результатам вступительных испытаний, проводимых организацией самостоятельно
A69: 2445 | B69: 0005К_ДИР_ПОМ_НАП_Д_2_17 | C69: Степанова Дина Зямильевна | D69: По результатам вступительных испытаний, проводимых организацией самостоятельно
A70: 2445 | B70: 0006К_ДИР_ПОМ_НАП_Д_2_17 | C70: Власова Елена Михайловна | D70: По результатам вступительных испытаний, проводимых организацией самостоятельно
A71: 2445 | B71: 0007К_ДИР_ПОМ_НАП_Д_2_17 | C71: Желябин Кирилл Сергеевич | D71: По результатам вступительных испытаний, проводимых организацией самостоятельно
A72: 2445 | B72: 0008К_ДИР_ПОМ_НАП_Д_2_17 | C72: Иванчиков Аркадий Борисович | D72: По результатам вступительных испытаний, проводимых организацией самостоятельно
A73: 2445 | B73: 0009К_ДИР_ПОМ_НАП_Д_2_17 | C73: Евсеева Наталья Сергеевна | D73: По результатам вступительных испытаний, проводимых организацией самостоятельно
A74: 2445 | B74: 0010К_ДИР_ПОМ_НАП_Д_2_17 | C74: Палкина Ксения Александровна | D74: По результатам вступительных испытаний, проводимых организацией самостоятельно
A75: 2445 | B75: 0011К_ДИР_ПОМ_НАП_Д_2_17 | C75: Монахова Галина Михайловна | D75: По результатам вступительных испытаний, проводимых организацией самостоятельно
A76: 2445 | B76: 0012К_ДИР_ПОМ_НАП_Д_2_17 | C76: Туева Ольга Дмитриевна | D76: По результатам вступительных испытаний, проводимых организацией самостоятельно
A77: 2445 | B77: 0013К_ДИР_ПОМ_НАП_Д_2_17 | C77: Егорова Светлана Владимировна | D77: По результатам вступительных испытаний, проводимых организацией самостоятельно
A78: 2445 | B78: 0014К_ДИР_ПОМ_НАП_Д_2_17 | C78: Черненко Лидия Михайловна | D78: По результатам вступительных испытаний, проводимых организацией самостоятельно
A79: 2445 | B79: 0015К_ДИР_ПОМ_НАП_Д_2_17 | C79: Королева Христина Максимовна | D79: По результатам вступительных испытаний, проводимых организацией самостоятельно
A80: 2445 | B80: 0016К_ДИР_ПОМ_НАП_Д_2_17 | C80: Катышев Сергей Викторович | D80: По результатам вступительных испытаний, проводимых организацией самостоятельно
A81: 2445 | B81: 0017К_ДИР_ПОМ_НАП_Д_2_17 | C81: Кольцова Оксана Николаевна | D81: По результатам вступительных испытаний, проводимых организацией самостоятельно
A82: 2445 | B82: 0018К_ДИР_ПОМ_НАП_Д_2_17 | C82: Нечипорук Татьяна Юрьевна | D82: По результатам вступительных испытаний, проводимых организацией самостоятельно
A83: 2445 | B83: 0019К_ДИР_ПОМ_НАП_Д_2_17 | C83: Самсонова Мария Игоревна | D83: По результатам вступительных испытаний, проводимых организацией самостоятельно
A84: 2445 | B84: 0020К_ДИР_ПОМ_НАП_Д_2_17 | C84: Марясина Кира Сергеевна | D84: По результатам вступительных испытаний, проводимых организацией самостоятельно
A85: 2445 | B85: 0021К_ДИР_ПОМ_НАП_Д_2_17 | C85: Волкова Дарья Леонидовна | D85: По результатам вступительных испытаний, проводимых организацией самостоятельно
A86: 2445 | B86: 0022К_ДИР_ПОМ_НАП_Д_2_17 | C86: Царькова Анастасия Алексеевна | D86: По результатам вступительных испытаний, проводимых организацией самостоятельно
A87: 2445 | B87: 0023К_ДИР_ПОМ_НАП_Д_2_17 | C87: Попова Валентина Ивановна | D87: По результатам вступительных испытаний, проводимых организацией самостоятельно
A88: 2445 | B88: 0024К_ДИР_ПОМ_НАП_Д_2_17 | C88: Горицкая Ксения Борисовна | D88: По результатам вступительных испытаний, проводимых организацией самостоятельно
A89: 2445 | B89: 0025К_ДИР_ПОМ_НАП_Д_2_17 | C89: Никитенко Ольга Владимировна | D89: По результатам вступительных испытаний, проводимых организацией самостоятельно
A90: 2445 | B90: 0026К_ДИР_ПОМ_НАП_Д_2_17 | C90: Пряхина Елена Александровна | D90: По результатам вступительных испытаний, проводимых организацией самостоятельно
A91: 2445 | B91: 0027К_ДИР_ПОМ_НАП_Д_2_17 | C91: Власова Ирина Александровна | D91: По результатам вступительных испытаний, проводимых организацией самостоятельно
A92: 2445 | B92: 0028К_ДИР_ПОМ_НАП_Д_2_17 | C92: Солдаткина Екатерина Ивановна | D92: По результатам вступительных испытаний, проводимых организацией самостоятельно
A93: 2445 | B93: 0029К_ДИР_ПОМ_НАП_Д_2_17 | C93: Вебер Владимир Валерьевич | D93: По результатам вступительных испытаний, проводимых организацией самостоятельно
A94: 2445 | B94: 0030К_ДИР_ПОМ_НАП_Д_2_17 | C94: Зверев Андрей Петрович | D94: По результатам вступительных испытаний, проводимых организацией самостоятельно
A95: 2445 | B95: 0031К_ДИР_ПОМ_НАП_Д_2_17 | C95: Бойко Леонид Александрович | D95: По результатам вступительных испытаний, проводимых организацией самостоятельно
A96: 2445 | B96: 0032К_ДИР_ПОМ_НАП_Д_2_17 | C96: Хавренкова Ирина Юрьевна | D96: По результатам вступительных испытаний, проводимых организацией самостоятельно
A97: 2445 | B97: 0033К_ДИР_ПОМ_НАП_Д_2_17 | C97: Смольянова Екатерина Сергеевна | D97: По результатам вступительных испытаний, проводимых организацией самостоятельно
A98: 2445 | B98: 0034К_ДИР_ПОМ_НАП_Д_2_17 | C98: Момотова Галина Викторовна | D98: По результатам вступительных испытаний, проводимых организацией самостоятельно
A99: 2445 | B99: 0035К_ДИР_ПОМ_НАП_Д_2_17 | C99: Ландо Ольга Алексеевна | D99: По результатам вступительных испытаний, проводимых организацией самостоятельно
A100: 2445 | B100: 0036К_ДИР_ПОМ_НАП_Д_2_17 | C100: Гориславская Лариса Александровна | D100: По результатам вступительных испытаний, проводимых организацией самостоятельно
A101: 2445 | B101: 0037К_ДИР_ПОМ_НАП_Д_2_17 | C101: Черниогло Анастасия Владимировна | D101: По результатам вступительных испытаний, проводимых организацией самостоятельно
A102: 2445 | B102: 0038К_ДИР_ПОМ_НАП_Д_2_17 | C102: Дюба Олеся Владимировна | D102: По результатам вступительных испытаний, проводимых организацией самостоятельно
A103: 2445 | B103: 0039К_ДИР_ПОМ_НАП_Д_2_17 | C103: Лимонова Татьяна Александровна | D103: По результатам вступительных испытаний, проводимых организацией самостоятельно
A104: 2445 | B104: 0040К_ДИР_ПОМ_НАП_Д_2_17 | C104: Савилова Елена Владимировна | D104: По результатам вступительных испытаний, проводимых организацией самостоятельно
A105: 2445 | B105: 0041К_ДИР_ПОМ_НАП_Д_2_17 | C105: Павлова Анна Сергеевна | D105: По результатам вступительных испытаний, проводимых организацией самостоятельно
A106: 2445 | B106: 0042К_ДИР_ПОМ_НАП_Д_2_17 | C106: Резников Сергей Сергеевич | D106: По результатам вступительных испытаний, проводимых организацией самостоятельно
A107: 2445 | B107: 0043К_ДИР_ПОМ_НАП_Д_2_17 | C107: Васильева Наталья Анатольевна | D107: По результатам вступительных испытаний, проводимых организацией самостоятельно
A108: 2445 | B108: 0044К_ДИР_ПОМ_НАП_Д_2_17 | C108: Эмирова Кристина Владимировна | D108: По результатам вступительных испытаний, проводимых организацией самостоятельно
A109: 2445 | B109: 0045К_ДИР_ПОМ_НАП_Д_2_17 | C109: Шушковская Александра Ивановна | D109: По результатам вступительных испытаний, проводимых организацией самостоятельно
A110: 2445 | B110: 0046К_ДИР_ПОМ_НАП_Д_2_17 | C110: Кузнецова Кристина Александровна | D110: По результатам вступительных испытаний, проводимых организацией самостоятельно
A111: 2445 | B111: 0047К_ДИР_ПОМ_НАП_Д_2_17 | C111: Словягина Ирина Алексеевна | D111: По результатам вступительных испытаний, проводимых организацией самостоятельно
A112: 2445 | B112: 0048К_ДИР_ПОМ_НАП_Д_2_17 | C112: Ахмадова Гюльнара Фейтуллаевна | D112: По результатам вступительных испытаний, проводимых организацией самостоятельно
A113: 2445 | B113: 0049К_ДИР_ПОМ_НАП_Д_2_17 | C113: Филонова Анна Сергеевна | D113: По результатам вступительных испытаний, проводимых организацией самостоятельно
A114: 2445 | B114: 0050К_ДИР_ПОМ_НАП_Д_2_17 | C114: Соколов Сергей Викторович | D114: По результатам вступительных испытаний, проводимых организацией самостоятельно
A115: 2445 | B115: 0051К_ДИР_ПОМ_НАП_Д_2_17 | C115: Соколова Екатерина Васильевна | D115: По результатам вступительных испытаний, проводимых организацией самостоятельно
A116: 2445 | B116: 0052К_ДИР_ПОМ_НАП_Д_2_17 | C116: Резникова Руслана Александровна | D116: По результатам вступительных испытаний, проводимых организацией самостоятельно
A117: 2445 | B117: 0053К_ДИР_ПОМ_НАП_Д_2_17 | C117: Резников Константин Сергеевич | D117: По результатам вступительных испытаний, проводимых организацией самостоятельно
A118: 2445 | B118: 0054К_ДИР_ПОМ_НАП_Д_2_17 | C118: Воронова Александра Игоревна | D118: По результатам вступительных испытаний, проводимых организацией самостоятельно
A119: 2445 | B119: 0055К_ДИР_ПОМ_НАП_Д_2_17 | C119: Калинин Валерий Михайлович | D119: По результатам вступительных испытаний, проводимых организацией самостоятельно
A120: 2445 | B120: 0056К_ДИР_ПОМ_НАП_Д_2_17 | C120: Шалунова Валерия Валерьевна | D120: По результатам вступительных испытаний, проводимых организацией самостоятельно
A121: 2445 | B121: 0057К_ДИР_ПОМ_НАП_Д_2_17 | C121: Кедрина Дарья Дмитриевна | D121: По результатам вступительных испытаний, проводимых организацией самостоятельно
A122: 2445 | B122: 0058К_ДИР_ПОМ_НАП_Д_2_17 | C122: Кедрина Евгения Дмитриевна | D122: По результатам вступительных испытаний, проводимых организацией самостоятельно
A123: 2445 | B123: 0059К_ДИР_ПОМ_НАП_Д_2_17 | C123: Мартемьянов Юрий Петрович | D123: По результатам вступительных испытаний, проводимых организацией самостоятельно
A124: 2446 | B124: 0001ДИР_ПОМД_ОП_Д_2_17 | C124: Фахрус Виктория Валерьевна | D124: По результатам вступительных испытаний, проводимых организацией самостоятельно
A125: 2446 | B125: 0002ДИР_ПОМД_ОП_Д_2_17 | C125: Оникова Татьяна Николаевна | D125: По результатам вступительных испытаний, проводимых организацией самостоятельно
A126: 2446 | B126: 0003ДИР_ПОМД_ОП_Д_2_17 | C126: Булычева Наталья Владимировна | D126: По результатам вступительных испытаний, проводимых организацией самостоятельно
A127: 2446 | B127: 0004ДИР_ПОМД_ОП_Д_2_17 | C127: Яковлева Марина Владимировна | D127: По результатам вступительных испытаний, проводимых организацией самостоятельно
A128: 2446 | B128: 0005ДИР_ПОМД_ОП_Д_2_17 | C128: Кузнецова Мария Александровна | D128: По результатам вступительных испытаний, проводимых организацией самостоятельно
A129: 2446 | B129: 0006ДИР_ПОМД_ОП_Д_2_17 | C129: Ровенская Наталья Анатольевна | D129: По результатам вступительных испытаний, проводимых организацией самостоятельно
A130: 2446 | B130: 0007ДИР_ПОМД_ОП_Д_2_17 | C130: Гормузева Наталья Юрьевна | D130: По результатам вступительных испытаний, проводимых организацией самостоятельно
A131: 2446 | B131: 0008ДИР_ПОМД_ОП_Д_2_17 | C131: Рыхлова Оксана Степановна | D131: По результатам вступительных испытаний, проводимых организацией самостоятельно
A132: 2446 | B132: 0009ДИР_ПОМД_ОП_Д_2_17 | C132: Краснов Иван Николаевич | D132: По результатам вступительных испытаний, проводимых организацией самостоятельно
A133: 2446 | B133: 0010ДИР_ПОМД_ОП_Д_2_17 | C133: Монахова Галина Михайловна | D133: По результатам вступительных испытаний, проводимых организацией самостоятельно
A134: 2446 | B134: 0011ДИР_ПОМД_ОП_Д_2_17 | C134: Кольцов Михаил Анатольевич | D134: По результатам вступительных испытаний, проводимых организацией самостоятельно
A135: 2446 | B135: 0012ДИР_ПОМД_ОП_Д_2_17 | C135: Желябин Антон Сергеевич | D135: По результатам вступительных испытаний, проводимых организацией самостоятельно
A136: 2446 | B136: 0013ДИР_ПОМД_ОП_Д_2_17 | C136: Рыжков Дмитрий-Фабиан Константинович | D136: По результатам вступительных испытаний, проводимых организацией самостоятельно
A137: 2446 | B137: 0014ДИР_ПОМД_ОП_Д_2_17 | C137: Бочарова Наталия Владимировна | D137: По результатам вступительных испытаний, проводимых организацией самостоятельно
A138: 2446 | B138: 0015ДИР_ПОМД_ОП_Д_2_17 | C138: Матюшенко Алексей Андреевич | D138: По результатам вступительных испытаний, проводимых организацией самостоятельно
A139: 2446 | B139: 0016ДИР_ПОМД_ОП_Д_2_17 | C139: Тодоренко Ксения Анатольевна | D139: По результатам вступительных испытаний, проводимых организацией самостоятельно
A140: 2446 | B140: 0017ДИР_ПОМД_ОП_Д_2_17 | C140: Святая Оксана Васильевна | D140: По результатам вступительных испытаний, проводимых организацией самостоятельно
A141: 2446 | B141: 0018ДИР_ПОМД_ОП_Д_2_17 | C141: Шишкина Марина Вячеславовна | D141: По результатам вступительных испытаний, проводимых организацией самостоятельно
A142: 2446 | B142: 0019ДИР_ПОМД_ОП_Д_2_17 | C142: Иванишко Игорь Викторович | D142: По результатам вступительных испытаний, проводимых организацией самостоятельно
A143: 2446 | B143: 0020ДИР_ПОМД_ОП_Д_2_17 | C143: Олейник Светлана Максимовна | D143: По результатам вступительных испытаний, проводимых организацией самостоятельно
A144: 2446 | B144: 0021ДИР_ПОМД_ОП_Д_2_17 | C144: Дюба Олеся Владимировна | D144: По результатам вступительных испытаний, проводимых организацией самостоятельно
A145: 2446 | B145: 0022ДИР_ПОМД_ОП_Д_2_17 | C145: Кутлузаманова Диана Рустемовна | D145: По результатам вступительных испытаний, проводимых организацией самостоятельно
A146: 2446 | B146: 0023ДИР_ПОМД_ОП_Д_2_17 | C146: Кудрявцева Карина Владимировна | D146: По результатам вступительных испытаний, проводимых организацией самостоятельно
A147: 2446 | B147: 0024ДИР_ПОМД_ОП_Д_2_17 | C147: Нифонтов Дмитрий Алексеевич | D147: По результатам вступительных испытаний, проводимых организацией самостоятельно
A148: 2446 | B148: 0025ДИР_ПОМД_ОП_Д_2_17 | C148: Кураченкова Мария Владимировна | D148: По результатам вступительных испытаний, проводимых организацией самостоятельно
A149: 2446 | B149: 0026ДИР_ПОМД_ОП_Д_2_17 | C149: Казакова Ольга Николаевна | D149: По результатам вступительных испытаний, проводимых организацией самостоятельно
A150: 2446 | B150: 0027ДИР_ПОМД_ОП_Д_2_17 | C150: Словягина Ирина Алексеевна | D150: По результатам вступительных испытаний, проводимых организацией самостоятельно
A151: 2446 | B151: 0028ДИР_ПОМД_ОП_Д_2_17 | C151: Моисеев Дмитрий Александрович | D151: По результатам вступительных испытаний, проводимых организацией самостоятельно
A152: 2446 | B152: 0029ДИР_ПОМД_ОП_Д_2_17 | C152: Соколов Сергей Викторович | D152: По результатам вступительных испытаний, проводимых организацией самостоятельно
A153: 2446 | B153: 0030ДИР_ПОМД_ОП_Д_2_17 | C153: Филонова Анна Сергеевна | D153: По результатам вступительных испытаний, проводимых организацией самостоятельно
A154: 2446 | B154: 0031ДИР_ПОМД_ОП_Д_2_17 | C154: Соколова Екатерина Васильевна | D154: По результатам вступительных испытаний, проводимых организацией самостоятельно
A155: 2446 | B155: 0032ДИР_ПОМД_ОП_Д_2_17 | C155: Резникова Руслана Александровна | D155: По результатам вступительных испытаний, проводимых организацией самостоятельно
A156: 2446 | B156: 0033ДИР_ПОМД_ОП_Д_2_17 | C156: Резников Константин Сергеевич | D156: По результатам вступительных испытаний, проводимых организацией самостоятельно
A157: 2446 | B157: 0034ДИР_ПОМД_ОП_Д_2_17 | C157: Клятышева Наталья Сергеевна | D157: По результатам вступительных испытаний, проводимых организацией самостоятельно
A158: 2446 | B158: 0035ДИР_ПОМД_ОП_Д_2_17 | C158: Федорова Елена Александровна | D158: По результатам вступительных испытаний, проводимых организацией самостоятельно
A159: 2447 | B159: 0001К_ДИР_ПОМД_ОП_Д_2_17 | C159: Фахрус Виктория Валерьевна | D159: По результатам вступительных испытаний, проводимых организацией самостоятельно
A160: 2447 | B160: 0002К_ДИР_ПОМД_ОП_Д_2_17 | C160: Оникова Татьяна Николаевна | D160: По результатам вступительных испытаний, проводимых организацией самостоятельно
A161: 2447 | B161: 0003К_ДИР_ПОМД_ОП_Д_2_17 | C161: Булычева Наталья Владимировна | D161: По результатам вступительных испытаний, проводимых организацией самостоятельно
A162: 2447 | B162: 0004К_ДИР_ПОМД_ОП_Д_2_17 | C162: Яковлева Марина Владимировна | D162: По результатам вступительных испытаний, проводимых организацией самостоятельно
A163: 2447 | B163: 0005К_ДИР_ПОМД_ОП_Д_2_17 | C163: Кузнецова Мария Александровна | D163: По результатам вступительных испытаний, проводимых организацией самостоятельно
A164: 2447 | B164: 0006К_ДИР_ПОМД_ОП_Д_2_17 | C164: Ровенская Наталья Анатольевна | D164: По результатам вступительных испытаний, проводимых организацией самостоятельно
A165: 2447 | B165: 0007К_ДИР_ПОМД_ОП_Д_2_17 | C165: Гормузева Наталья Юрьевна | D165: По результатам вступительных испытаний, проводимых организацией самостоятельно
A166: 2447 | B166: 0008К_ДИР_ПОМД_ОП_Д_2_17 | C166: Рыхлова Оксана Степановна | D166: По результатам вступительных испытаний, проводимых организацией самостоятельно
A167: 2447 | B167: 0009К_ДИР_ПОМД_ОП_Д_2_17 | C167: Краснов Иван Николаевич | D167: По результатам вступительных испытаний, проводимых организацией самостоятельно
A168: 2447 | B168: 0010К_ДИР_ПОМД_ОП_Д_2_17 | C168: Монахова Галина Михайловна | D168: По результатам вступительных испытаний, проводимых организацией самостоятельно
A169: 2447 | B169: 0011К_ДИР_ПОМД_ОП_Д_2_17 | C169: Желябин Антон Сергеевич | D169: По результатам вступительных испытаний, проводимых организацией самостоятельно
A170: 2447 | B170: 0012К_ДИР_ПОМД_ОП_Д_2_17 | C170: Рыжков Дмитрий-Фабиан Константинович | D170: По результатам вступительных испытаний, проводимых организацией самостоятельно
A171: 2447 | B171: 0013К_ДИР_ПОМД_ОП_Д_2_17 | C171: Бочарова Наталия Владимировна | D171: По результатам вступительных испытаний, проводимых организацией самостоятельно
A172: 2447 | B172: 0014К_ДИР_ПОМД_ОП_Д_2_17 | C172: Матюшенко Алексей Андреевич | D172: По результатам вступительных испытаний, проводимых организацией самостоятельно
A173: 2447 | B173: 0015К_ДИР_ПОМД_ОП_Д_2_17 | C173: Тодоренко Ксения Анатольевна | D173: По результатам вступительных испытаний, проводимых организацией самостоятельно
A174: 2447 | B174: 0016К_ДИР_ПОМД_ОП_Д_2_17 | C174: Святая Оксана Васильевна | D174: По результатам вступительных испытаний, проводимых организацией самостоятельно
A175: 2447 | B175: 0017К_ДИР_ПОМД_ОП_Д_2_17 | C175: Шишкина Марина Вячеславовна | D175: По результатам вступительных испытаний, проводимых организацией самостоятельно
A176: 2447 | B176: 0018К_ДИР_ПОМД_ОП_Д_2_17 | C176: Иванишко Игорь Викторович | D176: По результатам вступительных испытаний, проводимых организацией самостоятельно
A177: 2447 | B177: 0019К_ДИР_ПОМД_ОП_Д_2_17 | C177: Олейник Светлана Максимовна | D177: По результатам вступительных испытаний, проводимых организацией самостоятельно
A178: 2447 | B178: 0020К_ДИР_ПОМД_ОП_Д_2_17 | C178: Дюба Олеся Владимировна | D178: По результатам вступительных испытаний, проводимых организацией самостоятельно
A179: 2447 | B179: 0021К_ДИР_ПОМД_ОП_Д_2_17 | C179: Кутлузаманова Диана Рустемовна | D179: По результатам вступительных испытаний, проводимых организацией самостоятельно
A180: 2447 | B180: 0022К_ДИР_ПОМД_ОП_Д_2_17 | C180: Кудрявцева Карина Владимировна | D180: По результатам вступительных испытаний, проводимых организацией самостоятельно
A181: 2447 | B181: 0023К_ДИР_ПОМД_ОП_Д_2_17 | C181: Нифонтов Дмитрий Алексеевич | D181: По результатам вступительных испытаний, проводимых организацией самостоятельно
A182: 2447 | B182: 0024К_ДИР_ПОМД_ОП_Д_2_17 | C182: Кураченкова Мария Владимировна | D182: По результатам вступительных испытаний, проводимых организацией самостоятельно
A183: 2447 | B183: 0025К_ДИР_ПОМД_ОП_Д_2_17 | C183: Казакова Ольга Николаевна | D183: По результатам вступительных испытаний, проводимых организацией самостоятельно
A184: 2447 | B184: 0026К_ДИР_ПОМД_ОП_Д_2_17 | C184: Словягина Ирина Алексеевна | D184: По результатам вступительных испытаний, проводимых организацией самостоятельно
A185: 2447 | B185: 0027К_ДИР_ПОМД_ОП_Д_2_17 | C185: Моисеев Дмитрий Александрович | D185: По результатам вступительных испытаний, проводимых организацией самостоятельно
A186: 2447 | B186: 0028К_ДИР_ПОМД_ОП_Д_2_17 | C186: Соколов Сергей Викторович | D186: По результатам вступительных испытаний, проводимых организацией самостоятельно
A187: 2447 | B187: 0029К_ДИР_ПОМД_ОП_Д_2_17 | C187: Филонова Анна Сергеевна | D187: По результатам вступительных испытаний, проводимых организацией самостоятельно
A188: 2447 | B188: 0030К_ДИР_ПОМД_ОП_Д_2_17 | C188: Соколова Екатерина Васильевна | D188: По результатам вступительных испытаний, проводимых организацией самостоятельно
A189: 2447 | B189: 0031К_ДИР_ПОМД_ОП_Д_2_17 | C189: Резникова Руслана Александровна | D189: По результатам вступительных испытаний, проводимых организацией самостоятельно
A190: 2447 | B190: 0032К_ДИР_ПОМД_ОП_Д_2_17 | C190: Резников Константин Сергеевич | D190: По результатам вступительных испытаний, проводимых организацией самостоятельно
A191: 2447 | B191: 0033К_ДИР_ПОМД_ОП_Д_2_17 | C191: Клятышева Наталья Сергеевна | D191: По результатам вступительных испытаний, проводимых организацией самостоятельно
A192: 2447 | B192: 0034К_ДИР_ПОМД_ОП_Д_2_17 | C192: Мартемьянов Юрий Петрович | D192: По результатам вступительных испытаний, проводимых организацией самостоятельно
A193: 2447 | B193: 0035К_ДИР_ПОМД_ОП_Д_2_17 | C193: Федорова Елена Александровна | D193: По результатам вступительных испытаний, проводимых организацией самостоятельно
A194: 2448 | B194: 0001ДИР_РЕКМ_ОМ_Д_2_17 | C194: Оникова Татьяна Николаевна | D194: По результатам вступительных испытаний, проводимых организацией самостоятельно
A195: 2448 | B195: 0002ДИР_РЕКМ_ОМ_Д_2_17 | C195: Кузнецова Мария Александровна | D195: По результатам вступительных испытаний, проводимых организацией самостоятельно
A196: 2448 | B196: 0003ДИР_РЕКМ_ОМ_Д_2_17 | C196: Степанов Владимир Петрович | D196: По результатам вступительных испытаний, проводимых организацией самостоятельно
A197: 2448 | B197: 0004ДИР_РЕКМ_ОМ_Д_2_17 | C197: Миначева Юлия Зямилевна | D197: По результатам вступительных испытаний, проводимых организацией самостоятельно
A198: 2448 | B198: 0005ДИР_РЕКМ_ОМ_Д_2_17 | C198: Осипов Максим Александрович | D198: По результатам вступительных испытаний, проводимых организацией самостоятельно
A199: 2448 | B199: 0006ДИР_РЕКМ_ОМ_Д_2_17 | C199: Зубкова Марина Александровна | D199: По результатам вступительных испытаний, проводимых организацией самостоятельно
A200: 2448 | B200: 0007ДИР_РЕКМ_ОМ_Д_2_17 | C200: Ганжур Дмитрий Алексеевич | D200: По результатам вступительных испытаний, проводимых организацией самостоятельно
... 4300 more rows

Sheet Строки подключения (hidden)
A1: # | B1: DomainName | C1: ConnectionString | D1: v1.2
A2: 1 | B2: SPDEV.LOCAL | C2: OLEDB;Provider=SQLOLEDB.1;Trusted_connection=yes;Initial Catalog=edu_SQL_Storage;Data Source=IIS\SQL
A3: 2 | B3: SS.LOCAL | C3: OLEDB;Provider=SQLOLEDB.1;Trusted_connection=yes;Initial Catalog=edu_SQL_Storage;Data Source=SS2\SQL
